{"text_format":"1","workbook":"xlsx","n_sheets":5,"sheets":["AER NRs","AER lookups","AER ETL","Business & other details","Indicative bill impact"],"not_rendered":{"charts":0,"images":1,"macros":0,"external_links":0,"defined_names":312,"comments":1,"pivot_tables":0},"unopened":[],"bounds":{"document_bytes":16777216,"sheet_cells":100000,"rows_first":2000,"rows_last":500,"rows_between":2000,"halvings":0,"cell_chars":16384,"cell_head_chars":4096},"cells_cut":0,"cells_raw":0,"read":"whole","date_system":"1900"}

{"sheet":"AER NRs","index":0,"n_rows":226,"n_cols":15,"rows_kept":226,"cut":false,"hidden":true,"merged":[[193,1,194,1],[197,1,198,1],[206,1,211,1],[133,1,148,1],[150,1,156,1],[158,1,172,1],[174,1,175,1],[177,1,182,1],[189,1,190,1],[63,1,76,1],[82,1,95,1],[98,1,105,1],[108,1,113,1],[116,1,130,1],[4,1,26,1],[30,1,53,1],[31,10,33,10],[31,36,31,57],[31,67,31,88],[32,36,32,57],[32,67,32,88],[33,36,33,57],[33,67,33,88],[34,10,38,10],[42,10,43,10]]}
[null,"AER NAMED RANGES"]
[]
[null,"DROP DOWN SELECTORS USED IN WORKBOOKS"]
[]
[null,"COVER SHEET","dms_DataQuality_List","dms_Confid_status_List"]
[null,null,"-- select --","-- select --"]
[null,null,"Actual","Public"]
[null,null,"Estimate","Confidential"]
[null,null,"Consolidated"]
[]
[]
[null,null,"For all files either AER or business needs to be able to specify the type of submission","For PTRM & RFM templates we must provide a choice in case they change their form of control - otherwise it is drawn from the business specific lookup table above."]
[null,null,"dms_SourceList","dms_FormControl_Choices"]
[null,null,"-- select --","Revenue cap"]
[null,null,"After appeal","Revenue yield"]
[null,null,"Draft decision","Weighted average price cap"]
[null,null,"Final decision"]
[null,null,"PTRM update 1"]
[null,null,"PTRM update 2"]
[null,null,"PTRM update 3"]
[null,null,"PTRM update 4"]
[null,null,"PTRM update 5"]
[null,null,"PTRM update 6"]
[null,null,"PTRM update 7"]
[null,null,"Regulatory proposal"]
[null,null,"Reporting"]
[null,null,"Revised regulatory proposal"]
[]
[]
[null,null,null,null,null,null,null,null,null,null,"This is used to create an image to insert on 6.3 STPIS sheet - not for dropdown lists.",null,null,"GAS"]
[null,"CA & RESET RINS \nDNSP","dms_DNSP_020301_SubstationType","dms_DNSP_020301_ProjectType","dms_DNSP_020301_ProjectTrigger","dms_DNSP_020302_ProjectType","dms_DNSP_020302_ProjectTrigger","dms_STPIS_Exclusion_List","dms_Reason_Interruption","dms_Reason_Interruption_Detailed","Reason for interruption",null,null,"dms_N0205_AssetType"]
[null,null,"Subtransmission substation","New substation establishment","Demand growth","New line on new route - single circuit","Demand growth","Weather","Animal","Animal impact","Animal","Animal impact",null,"Cast Iron"]
[null,null,"Zone substation","Substation upgrade - capacity"," Voltage issues","New line on new route - dual circuit"," Voltage issues","Equipment failure","Asset failure","Animal nesting/burrowing, etc and other",null,"Animal nesting/burrowing, etc and other",null,"PVC"]
[null,null,"Switching station","Substation upgrade - voltage"," Reactive power issue","New line on new route - other"," Reactive power issue","Operational error","Other","Other",null,"Other",null,"Polyamide"]
[null,null,"Other","Other"," Fault level issues","Line rebuild over existing route - single circuit"," Fault level issues","Vegetation","Overloads","LV","Asset failure","LV",null,"High density polyethylene (80)"]
[null,null,null,null," Safety","Line rebuild over existing route - dual circuit"," Net market benefit","Animals","Planned","Distribution substation",null,"Distribution substation",null,"High density polyethylene (100)"]
[null,null,null,null," Environment","Reconductor - Single circuit"," Safety","Third party impacts","Network business","HV",null,"HV",null,"High density polyethylene (250)"]
[null,null,null,null," Other","Reconductor - Dual circuit"," Environment","Transmission failure","Third party","Zone substation",null,"Zone substation",null,"High density polyethylene (575)"]
[null,null,null,null,null,"Reconductor - Other"," Other","Load shedding","Unknown","Subtransmission",null,"Subtransmission",null,"Medium density polyethylene"]
[null,null,null,null,null,"Line upgrade - raising/retensoring",null,"Inter-distributor connection failure","Vegetation","insert description of 'other'","Other","insert description of 'other'",null,"Unprotected steel"]
[null,null,null,null,null,"Line upgrade - voltage upgrade",null,"Other","Weather","Network error","Overloads",null,null,"Protected steel"]
[null,null,null,null,null,"Line upgrade - capacity",null,null,"2 - STPIS Exclusion (3.3)(a)","Switching and protection error","Planned",null,null,"Other"]
[null,null,null,null,null,"String spare circuit",null,null,"3 - STPIS Exclusion (3.3)(a)","Fire","Network business","Network error"]
[null,null,null,null,null,"Other",null,null,"4 - STPIS Exclusion (3.3)(a)","Other",null,"Switching and protection error"]
[null,null,null,null,null,null,null,null,"5 - STPIS Exclusion (3.3)(a)","Dig-in","Third party","Fire"]
[null,null,null,null,null,null,null,null,"6 - STPIS Exclusion (3.3)(a)","Unauthorised access",null,"Other"]
[null,null,null,null,null,null,null,null,"7 - STPIS Exclusion (3.3)(a)","Vehicle impact",null,"Dig-in"]
[null,null,null,null,null,null,null,null,null,"Unknown",null,"Unauthorised access"]
[null,null,null,null,null,null,null,null,null,"Blow-in/Fall-in - NSP responsibility",null,"Vehicle impact"]
[null,null,null,null,null,null,null,null,null,"Grow-in - NSP responsibility","Unknown","Unknown"]
[null,null,null,null,null,null,null,null,null,"Blow-in/Fall-in - Other responsible party","Vegetation","Blow-in/Fall-in - NSP responsibility"]
[null,null,null,null,null,null,null,null,null,"Grow-in - Other responsible party",null,"Grow-in - NSP responsibility"]
[null,null,null,null,null,null,null,null,null,null,null,"Blow-in/Fall-in - Other responsible party"]
[null,null,null,null,null,null,null,null,null,null,null,"Grow-in - Other responsible party"]
[null,null,null,null,null,null,null,null,null,null,"Weather"]
[null,null,null,null,null,null,null,null,null,null,"2 - STPIS Exclusion (3.3)(a)"]
[null,null,null,null,null,null,null,null,null,null,"3 - STPIS Exclusion (3.3)(a)"]
[null,null,null,null,null,null,null,null,null,null,"4 - STPIS Exclusion (3.3)(a)"]
[null,null,null,null,null,null,null,null,null,null,"5 - STPIS Exclusion (3.3)(a)"]
[null,null,null,null,null,null,null,null,null,null,"6 - STPIS Exclusion (3.3)(a)"]
[null,null,null,null,null,null,null,null,null,null,"7 - STPIS Exclusion (3.3)(a)"]
[]
[]
[null,"CA & RESET RINS \nTNSP ","dms_TNSP_0203_SubstationType","dms_TNSP_020301_ProjectType","dms_TNSP_020301_ProjectTrigger","dms_TNSP_020302_ProjectType","dms_TNSP_0203_ProjectTrigger"]
[null,null,"Terminal station","New substation establishment","Demand growth","New line on new route - single circuit","Demand growth"]
[null,null,"Switching station","Capacity upgrade"," Voltage issues","New line on new route - dual circuit"," Voltage issues"]
[null,null,"Transmission substation","Voltage upgrade"," Reactive power issue","New line on new route - other"," Reactive power issue"]
[null,null,"Other","Other"," Fault level issues","Line rebuild over existing route - single circuit"," Fault level issues"]
[null,null,null,null,"Net market benefit","Line rebuild over existing route - dual circuit"," Net market benefit"]
[null,null,null,null," Safety","Reconductor - Single circuit"," Safety"]
[null,null,null,null," Environment","Reconductor - Dual circuit"," Environment"]
[null,null,null,null," Other","Reconductor - Other"," Other"]
[null,null,null,null,null,"Line upgrade - raising/retensoring"]
[null,null,null,null,null,"Line upgrade - voltage upgrade"]
[null,null,null,null,null,"Line upgrade - capacity"]
[null,null,null,null,null,"String spare circuit"]
[null,null,null,null,null,"Other"]
[]
[]
[]
[null,"NAMED RANGES USED IN ETL PROCESS"]
[null,null,null,null,null,null,null,null,null,null,null,null,"GAS ARR & RESET"]
[null,"CA & RESET RINS \nDNSP ONLY","dms_020303_01_UOM","dms_020501_01_UOM","dms_020501_02_UOM","dms_020501_03_UOM","dms_020501_04_UOM","dms_020701_01_UOM","dms_020701_02_UOM","dms_020701_01_Rows","dms_040102_01_UOM","dms_040102_04_UOM","dms_S140101_UOM"]
[null,null,"Circuit line length in km","0's","0's","0's","0's","km","km","Route line length within zone","0's","days","number"]
[null,null,"Circuit line length in km","0's","0's","0's","0's","0's","0's","Number of maintenance spans","0's","0's","number"]
[null,null,"Circuit line length in km","MVA added","MVA added","MVA added","MVA added","km","km","Total length of maintenance spans","0's","$0s","number"]
[null,null,"Circuit line length in km","0's","0's","0's","0's","km","km","Length of vegetation corridors","$0s","0's","km"]
[null,null,"Number","total spend $0s","total spend $0s","total spend $0s","total spend $0s","0's","0's","Average number of trees per maintenance span"]
[null,null,"Number","net circuit km added","net circuit km added","net circuit km added","net circuit km added","years","years","Average frequency of cutting cycle"]
[null,null,"Number","total spend $0s","total spend $0s","total spend $0s","total spend $0s"]
[null,null,null,"net circuit km added","net circuit km added","net circuit km added","net circuit km added"]
[null,null,null,"total spend $0s","total spend $0s","total spend $0s","total spend $0s"]
[null,null,null,"0's",null,"$0s"]
[null,null,null,"0's"]
[null,null,null,"0's"]
[null,null,null,"$0s"]
[]
[]
[null,"CA & RESET RINS \nTNSP ONLY","dms_020701_01_UOM"]
[null,null,"km"]
[null,null,"0's"]
[null,null,"km"]
[null,null,"0's"]
[null,null,"km"]
[null,null,"metres"]
[null,null,"years"]
[]
[]
[null,"CA & RESET RINS \nDNSP & TNSP","dms_020603_01_UOM"]
[null,null,"0's"]
[null,null,"0's"]
[null,null,"0's"]
[null,null,"0's"]
[null,null,"(per cent)"]
[]
[]
[null,"EB & RESET RINS \nDNSP ONLY","dms_030601_01_UOM","dms_030601_02_UOM","dms_030701_01_UOM","dms_030702_01_UOM","dms_030703_01_UOM"]
[null,null,"minutes/customer","minutes/customer","Customer / km","%","km"]
[null,null,"minutes/customer","minutes/customer","MWh/customer","Number of spans"]
[null,null,"interruptions/customer","interruptions/customer","kVA / customer","Number of spans"]
[null,null,"interruptions/customer","interruptions/customer",null,"Number of spans"]
[null,null,null,null,null,"Number of spans"]
[null,null,null,null,null,"Years"]
[null,null,null,null,null,"Years"]
[null,null,null,null,null,"Trees"]
[null,null,null,null,null,"Trees"]
[null,null,null,null,null,"Defects"]
[null,null,null,null,null,"Defects"]
[null,null,null,null,null,"Spans"]
[null,null,null,null,null,"km"]
[null,null,null,null,null,"Spans"]
[]
[null,null,"WHEN INSERTING COVER SHEET INTO A TNSP FILE - APPLY THESE NAMED RANGES"]
[null,"EB & RESET RINS \nTNSP ONLY","dms_030601_01_UOM",null,"dms_030701_01_UOM","dms_030702_01_UOM"]
[null,null,"%",null,"Number of spans","km"]
[null,null,"number",null,"Years","%"]
[null,null,"number",null,"Trees","km"]
[null,null,"%",null,"Defects","number"]
[null,null,"number",null,"Number of spans"]
[null,null,"number",null,"km"]
[null,null,"%",null,"km"]
[null,null,"number",null,"Number of spans"]
[null,null,"number"]
[null,null,"%"]
[null,null,"number"]
[null,null,"%"]
[null,null,"number"]
[null,null,"%"]
[null,null,"number"]
[]
[null,"EB & RESET RINS \nDNSP & TNSP","dms_EB_RAB_PIT"]
[null,null,"Beginning of year"]
[null,null,"End of year"]
[null,null,"End of year"]
[null,null,"End of year"]
[null,null,"End of year"]
[null,null,"End of year"]
[]
[null,"ARR \nDNSP ONLY","dms_030605_UOM","dms_03060703_UOM","dms_E020202_UOM","Spare"]
[null,null,"number","number","Length of mains replaced"]
[null,null,"number","number","Number of services replaced"]
[null,null,"number","number"]
[null,null,"number","number"]
[null,null,"number","(per cent)"]
[null,null,"number"]
[null,null,"number"]
[null,null,"number"]
[null,null,"number"]
[null,null,"number"]
[null,null,"number"]
[null,null,"number"]
[null,null,"(per cent)"]
[null,null,"(per cent)",""]
[]
[null,"RFM","dms_Beg","dms_Mid","dms_End"]
[null,null,"Beginning of year","Mid year","End of Year"]
[]
[null,"PTRM","dms_PTRM_RAB_PIT","dms_PTRM_TAB_PIT","DMS_Xfactor"]
[null,null,"Beginning of year","Beginning of year","x factors"]
[null,null,"End of year","End of year"]
[null,null,"End of year","End of year"]
[null,null,"End of year","End of year"]
[null,null,"End of year"]
[]
[]
[null,"STPIS & MIC NAMED RANGES "]
[]
[null,"These \"row descriptions\" are the column headings in the various templates but become row descriptions in the ETL process"]
[]
[null,"Table 6.3 sustained interruptions - row descriptions","dms_060301_CustNo_Affected_Row","dms_060301_Avg_Duration_Sustained_Int_Row","dms_060301_Effect_unplanned_SAIDI_Row","dms_060301_Effect_unplanned_SAIFI_Row"]
[null,null,"Number of customers affected by the interruption","Average duration of sustained customer interruption","Effect on unplanned SAIDI","Effect on unplanned SAIFI"]
[]
[]
[null,"Table 6.1 telephone answering - row descriptions and start date","dms_060101_Rows","dms_060102_Rows","dms_060101_StartDateTxt"]
[null,null,"Total number of calls \n(after removing excluded events)","Number of calls answered within 30 seconds \n(after excluding excluded events) ",{"$f":"dms_060701_StartDateTxt","v":"1-Jul-2015"}]
[]
[]
[null,"Table 6.8.1 - row descriptions","dms_060801_01_Rows","dms_060801_02_Rows","dms_060801_03_Rows","dms_060801_04_Rows"]
[null,null,"Number of interruptions","Duration of interruptions","Total unplanned minutes off supply","Effect on unplanned MAIFI"]
[]
[]
[null,"Table 7.9.4 - market impact component - row descriptions","dms_070904_01_Rows","without exclusions","with exclusions"]
[]
[]
[null,"These headings (Lists) are determined from the INDEX/MATCH function on the NSP selected on the Business & other details sheet"]
[]
[null,"Table 6.7.1 - daily performance data - unplanned - MAIFI  -- row descriptions and header named range values","dms_060701_Feeder_Header_Lvl4",{"$f":"INDEX(dms_FeederName_1,MATCH(dms_TradingName,dms_TradingName_List))","v":"CBD"},{"$f":"INDEX(dms_FeederName_1,MATCH(dms_TradingName,dms_TradingName_List))","v":"CBD"},{"$f":"INDEX(dms_FeederName_2,MATCH(dms_TradingName,dms_TradingName_List))","v":"Urban"},{"$f":"INDEX(dms_FeederName_2,MATCH(dms_TradingName,dms_TradingName_List))","v":"Urban"},{"$f":"INDEX(dms_FeederName_3,MATCH(dms_TradingName,dms_TradingName_List))","v":"Short rural"},{"$f":"INDEX(dms_FeederName_3,MATCH(dms_TradingName,dms_TradingName_List))","v":"Short rural"},{"$f":"INDEX(dms_FeederName_4,MATCH(dms_TradingName,dms_TradingName_List))","v":"Long rural"},{"$f":"INDEX(dms_FeederName_4,MATCH(dms_TradingName,dms_TradingName_List))","v":"Long rural"},{"$f":"IF((INDEX(dms_FeederName_5,MATCH(dms_TradingName,dms_TradingName_List))=0),\"Network\",(INDEX(dms_FeederName_5,MATCH(dms_TradingName,dms_TradingName_List))))","v":"Network"},{"$f":"IF((INDEX(dms_FeederName_5,MATCH(dms_TradingName,dms_TradingName_List))=0),\"Network\",(INDEX(dms_FeederName_5,MATCH(dms_TradingName,dms_TradingName_List))))","v":"Network"},"Network","Network"]
[]
[null,null,"dms_060701_Rows","All events","After removing excluded events","All events","After removing excluded events","All events","After removing excluded events","All events","After removing excluded events","All events","After removing excluded events","All events","After removing excluded events"]
[null,null,null,"the number of column headings changes from 10 to 12 depending on the number of feeder categories for the NSP"]
[]
[null,null,"dms_0603_FeederList",{"$f":"INDEX(dms_FeederName_1,MATCH(dms_TradingName,dms_TradingName_List))","v":"CBD"},{"$f":"INDEX(dms_FeederName_2,MATCH(dms_TradingName,dms_TradingName_List))","v":"Urban"},{"$f":"INDEX(dms_FeederName_3,MATCH(dms_TradingName,dms_TradingName_List))","v":"Short rural"},{"$f":"INDEX(dms_FeederName_4,MATCH(dms_TradingName,dms_TradingName_List))","v":"Long rural"}]
[]
[]
[null,"Use these to add to specific worksheets in existing files","Use these to add to specific worksheets in existing files"]
[]
[]
[null,"ARRs 6.7 STPIS daily performance","dms_060101_Values","dms_060102_Values","dms_060701_Values"]
[null,null,"dms_LeapYear"]
[]
[]
[null,"ARR's  6.8 STPIS exclusions","dms_060801_Event_Date","dms_060801_OutageID","dms_060801_FeederID","dms_060801_FeederClass","dms_060801_CauseID","dms_060801_01_Values","dms_060801_02_Values","dms_060801_03_Values","dms_060801_Excl_Cat","dms_060801_04_Values"]
[null,null,"dms_060801_StartCell"]
[]
[]
[null,"CA 6.3 sustained interruptions","dms_060301_Event_Date","dms_060301_Event_Time","dms_060301_AssetID","dms_060301_FeederClass","dms_060301_Reason","dms_060301_DetailedReason","dms_060301_CustNo_Affected_Values","dms_060301_Avg_Duration_Sustained_Int_Values","dms_060301_Effect_unplanned_SAIDI_Values","dms_060301_Effect_unplanned_SAIFI_Values","dms_060301_MED"]

{"sheet":"AER lookups","index":1,"n_rows":130,"n_cols":37,"rows_kept":130,"cut":false,"hidden":true,"merged":[[40,64,40,85],[64,1,64,4],[10,25,10,35],[11,25,11,28],[11,30,11,34],[11,35,13,35],[38,64,38,85],[39,64,39,85]]}
[null,"AER LOOKUP TABLES"]
[]
[null,"Data in these columns used for data validation and database purposes."]
[null,"Date last modified:","2017-01-16","added (Albury and Victora) for AGN"]
[null,null,"2016-10-17","updated TransGrid's correct legal name, corrected TasNetworks (T) to June financial year"]
[null,null,"2017-02-01","inserted Power and Water, added NRs (dms_FeederCat_1 and dms_FeederCat_2)"]
[null,null,"2017-03-03","inserted AEMO as a business"]
[null,null,"2018-03-28","major changes to accommodate STPIS"]
[null,null,"Template Version",5]
[]
[null,null,null,null,null,null,null,null,null,null,null,null,null,null,null,null,null,null,null,null,null,null,null,null,null,"FOR ELECTRICITY BUSINESSES ONLY"]
[null,null,null,null,null,null,null,null,null,null,null,null,null,null,null,null,null,null,null,null,null,null,null,null,null,"Feeder Types",null,null,null,"TasNetworks (D)","Feeder Names"]
[]
[null,null,null,null,null,null,null,null,null,null,null,null,null,null,null,null,null,null,null,null,null,null,null,null,null,"CBD","Urban","Short rural","long rural","EXTRA"]
[null,"dms_TradingName_List","dms_TradingNameFull_List","dms_ABN_List","dms_JurisdictionList","dms_Sector_List","dms_Segment_List","dms_FormControl_List","dms_RPT_List","dms_RPTMonth_List","dms_CRCPlength_List","dms_FRCPlength_List","dms_PRCPlength_List","dms_663_List","dms_DeterminationRef_List","dms_Addr1_List","dms_Addr2_List","dms_Suburb_List","dms_State_List","dms_PostCode_List","dms_PAddr1_List","dms_PAddr2_List","dms_PSuburb_List","dms_PState_List","dms_PPostCode_List","dms_CBD_flag","dms_Urban_flag","dms_ShortRural_flag","dms_LongRural_flag","dms_FeederType_5_flag","dms_FeederName_1","dms_FeederName_2","dms_FeederName_3","dms_FeederName_4","dms_FeederName_5","dms_Public_Lighting_List","Name"]
[null,"ActewAGL Distribution","ActewAGL Distribution",76670568688,"ACT","Electricity","Distribution","Revenue cap","Financial","June",5,5,5,5,"2014-19 Distribution Determination","40 Bunda Street",null,"CANBERRA","ACT",2600,"GPO BOX 366",null,"CANBERRA","ACT",2601,"NO","YES","YES","NO","NO","CBD","Urban","Short rural","Long rural",null,"NO",{"$f":"B16","v":"ActewAGL Distribution"}]
[null,"ActewAGL Distribution (Tx Assets)","ActewAGL Distribution (Tx Assets)",76670568688,"ACT","Electricity","Distribution","Revenue cap","Financial","June",5,5,5,5,"distribution determination","40 Bunda Street",null,"CANBERRA","ACT",2600,"GPO BOX 366",null,"CANBERRA","ACT",2601,"NO","YES","YES","NO","NO","CBD","Urban","Short rural","Long rural",null,"NO","ActewAGL Distribution (Tx Assets)"]
[null,"ActewAGL Gas","Icon Distribution Investments Limited (ABN 83 073 025 224) and Jemena Networks (ACT) Pty Ltd (ABN 24 008 552 663)",76670568688,"ACT","Gas","Distribution","Weighted average price cap","Financial","June",5,5,5,"x",null,"40 Bunda Street",null,"CANBERRA","ACT",2600,"GPO BOX 366",null,"CANBERRA","ACT",2601,"NO","NO","NO","NO","NO","CBD","Urban","Short rural","Long rural",null,"NO","ActewAGL Gas"]
[null,"AEMO","Australian Energy Market Operator Ltd",94072010327,"Vic","Electricity","Transmission","-","Financial","March",5,5,5,"x","-","Level 22","530 Collins Street","MELBOURNE","Vic",3000,"GPO Box 2008",null,"MELBOURNE","Vic",3001,"NO","NO","NO","NO","NO","CBD","Urban","Short rural","Long rural",null,"NO","AEMO"]
[null,"AGN (Albury and Victoria)","Australian Gas Networks Limited (reporting data for Albury and Victoria)",19078551685,"Vic","Gas","Distribution","Weighted average price cap","Calendar","December",5,5,5,"x",null,"Level 6","400 King William Street","ADELAIDE","SA",5000,"PO Box 6468","Halifax Street","ADELAIDE","SA",5000,"NO","NO","NO","NO","NO","CBD","Urban","Short rural","Long rural",null,"NO","AGN (Albury and Victoria)"]
[null,"AGN (Albury)","Australian Gas Networks Limited (reporting data for Albury)",19078551685,"Vic","Gas","Distribution","Weighted average price cap","Calendar","December",5,5,5,"x",null,"Level 6","400 King William Street","ADELAIDE","SA",5000,"PO Box 6468","Halifax Street","ADELAIDE","SA",5000,"NO","NO","NO","NO","NO","CBD","Urban","Short rural","Long rural",null,"NO","AGN (Albury)"]
[null,"AGN (SA)","Australian Gas Networks Limited (reporting data for SA)",19078551685,"SA","Gas","Distribution","Weighted average price cap","Financial","June",5,5,5,5,"distribution determination","Level 6","400 King William Street","ADELAIDE","SA",5000,"PO Box 6468","Halifax Street","ADELAIDE","SA",5000,"NO","NO","NO","NO","NO","CBD","Urban","Short rural","Long rural",null,"NO","AGN (SA)"]
[null,"AGN (Victoria)","Australian Gas Networks Limited (reporting data for Victoria)",19078551685,"Vic","Gas","Distribution","Weighted average price cap","Calendar","December",5,5,5,"x",null,"Level 6","400 King William Street","ADELAIDE","SA",5000,"PO Box 6468","Halifax Street","ADELAIDE","SA",5000,"NO","NO","NO","NO","NO","CBD","Urban","Short rural","Long rural",null,"NO","AGN (Victoria)"]
[null,"Amadeus","APT Pipelines (NT) Pty Ltd",39009737393,"NT","Gas","Transmission","Weighted average price cap","Financial","June",5,5,5,"x","n/a","Level 19, HSBC Building","580 George Street","SYDNEY","NSW",2000,"Level 19, HSBC Building","580 George Street","SYDNEY","NSW",2000,"NO","NO","NO","NO","NO","CBD","Urban","Short rural","Long rural",null,"NO","Amadeus"]
[null,"APA GasNet","APA GasNet Australia (Operations) Pty Ltd",65083009,"Vic","Gas","Transmission","Weighted average price cap","Calendar","December",5,5,5,"x",null,"Level 19, HSBC Building","580 George Street","SYDNEY","NSW",2000,"PO Box R41",null,"ROYAL EXCHANGE","NSW",1225,"NO","NO","NO","NO","NO","CBD","Urban","Short rural","Long rural",null,"NO","APA GasNet"]
[null,"Ausgrid","Ausgrid",67505337385,"NSW","Electricity","Distribution","Revenue cap","Financial","June",5,5,5,5,"2014-19 Distribution Determination","570 George St",null,"SYDNEY","NSW",2000,"GPO Box 4009",null,"SYDNEY","NSW",2001,"YES","YES","YES","YES","NO","CBD","Urban","Short rural","Long rural",null,"YES","Ausgrid"]
[null,"Ausgrid (Tx Assets)","Ausgrid (Tx Assets)",67505337385,"NSW","Electricity","Distribution","Revenue cap","Financial","June",5,5,5,5,"distribution determination","570 George St",null,"SYDNEY","NSW",2000,"GPO Box 4009",null,"SYDNEY","NSW",2001,"YES","YES","YES","YES","NO","CBD","Urban","Short rural","Long rural",null,"NO","Ausgrid (Tx Assets)"]
[null,"AusNet (D)","AusNet Electricity Services Pty Ltd",91064651118,"Vic","Electricity","Distribution","Revenue cap","Financial","June",5,5,5,2,"2016-20 Distribution Determination","Level 32","2 Southbank Boulevard","SOUTHBANK","Vic",3006,"Locked Bag 14051",null,"MELBOURNE CITY MAIL CENTRE","Vic",8001,"NO","YES","YES","YES","NO","CBD","Urban","Short rural","Long rural",null,"YES","AusNet (D)"]
[null,"AusNet (Gas)","AusNet Gas Services","086015036","Vic","Gas","Distribution","Weighted average price cap","Calendar","December",5,5,5,"-","-","Level 19, HSBC Building","580 George Street","SYDNEY","NSW",2000,"PO Box R41",null,"ROYAL EXCHANGE","NSW",1225,"NO","NO","NO","NO","NO","CBD","Urban","Short rural","Long rural",null,"NO","AusNet (Gas)"]
[null,"AusNet (T)","Ausnet Services (Transmission) Ltd",48116124362,"Vic","Electricity","Transmission","Revenue cap","Financial","March",5,5,5,2,"transmission determination","Level 32","2 Southbank Boulevard","SOUTHBANK","Vic",3006,"Locked Bag 14051",null,"MELBOURNE CITY MAIL CENTRE","Vic",8001,"NO","NO","NO","NO","NO","CBD","Urban","Short rural","Long rural",null,"NO","AusNet (T)"]
[null,"Australian Distribution Co.","Australian Distribution Co.",11222333444,"NSW","Electricity","Distribution","Revenue cap","Financial","June",5,5,5,2,"distribution determination","123 Straight Street",null,"SYDNEY","NSW",2000,"PO Box 123",null,"SYDNEY","NSW",2000,"YES","YES","YES","YES","NO","CBD","Urban","Short rural","Long rural",null,"YES","Australian Distribution Co."]
[null,"Australian Distribution Co. (Gas)","Australian Gas Distribution Co. ",11222333444,"NSW","Gas","Distribution","Weighted average price cap","Financial","June",5,5,5,"-","-","123 Straight Street",null,"SYDNEY","NSW",2000,"PO Box 123",null,"SYDNEY","NSW",2000,"NO","NO","NO","NO","NO","CBD","Urban","Short rural","Long rural",null,"NO","Australian Distribution Co. (Gas)"]
[null,"Australian Distribution Co. (Vic)","Australian Distribution Co. (Victoria)",11222333444,"Vic","Electricity","Distribution","Revenue cap","Financial","June",5,5,5,2,"distribution determination","123 Straight Street",null,"MELBOURNE","Vic",3000,"PO Box 123",null,"MELBOURNE","Vic",3000,"NO","NO","NO","NO","NO","CBD","Urban","Short rural","Long rural",null,"YES","Australian Distribution Co. (Vic)"]
[null,"Australian Transmission Co.","Australian Transmission Co.",11222333444,"NSW","Electricity","Transmission","Revenue cap","Financial","June",5,5,5,5,"transmission determination","123 Straight Street",null,"SYDNEY","NSW",2000,"PO Box 123",null,"SYDNEY","NSW",2000,"NO","NO","NO","NO","NO","CBD","Urban","Short rural","Long rural",null,"NO","Australian Transmission Co."]
[null,"Australian Transmission Co. (Gas)","Australian Transmission Co. (Gas)",11222333444,"NSW","Gas","Transmission","Revenue cap","Financial","June",5,5,5,5,"transmission determination","123 Straight Street",null,"SYDNEY","NSW",2000,"PO Box 123",null,"SYDNEY","NSW",2000,"NO","NO","NO","NO","NO","CBD","Urban","Short rural","Long rural",null,"NO","Australian Transmission Co. (Gas)"]
[null,"Central Ranges Pipeline (D)","Central Ranges Pipeline Pty Ltd",108218355,"NSW","Gas","Distribution","Weighted average price cap","Financial","June",15,5,5,5,"distribution determination","Level 19","580 George Street","SYDNEY","NSW",2000,"PO Box R41",null,"ROYAL EXCHANGE","NSW",1225,"NO","NO","NO","NO","NO","CBD","Urban","Short rural","Long rural",null,null,"Central Ranges Pipeline (D)"]
[null,"Central Ranges Pipeline (T)","Central Ranges Pipeline Pty Ltd",108218355,"NSW","Gas","Transmission","Weighted average price cap","Financial","June",14,5,5,5,"transmission determination","Level 19","580 George Street","SYDNEY","NSW",2000,"PO Box R41",null,"ROYAL EXCHANGE","NSW",1225,"NO","NO","NO","NO","NO","CBD","Urban","Short rural","Long rural",null,"NO","Central Ranges Pipeline (T)"]
[null,"CitiPower","CitiPower",76064651056,"Vic","Electricity","Distribution","Revenue cap","Financial","June",5,5,5,2,"2016-20 Distribution Determination","40 Market Street",null,"MELBOURNE","Vic",3000,"Locked Bag 14090",null,"MELBOURNE","Vic",8001,"YES","YES","NO","NO","NO","CBD","Urban","Short rural","Long rural",null,"YES","CitiPower"]
[null,"Directlink","Directlink",16779340889,"Qld","Electricity","Transmission","Revenue cap","Financial","June",5,5,5,5,"transmission determination","Level 25","580 George Street","SYDNEY","NSW",2000,"PO Box R41",null,"ROYAL EXCHANGE","NSW",1225,"NO","NO","NO","NO","NO","CBD","Urban","Short rural","Long rural",null,"NO","Directlink"]
[null,"ElectraNet","ElectraNet",41094482416,"SA","Electricity","Transmission","Revenue cap","Financial","June",5,5,5,5,"transmission determination","52-55 East Terrace","Rymill Park","ADELAIDE","SA",5000,"PO Box 7096","Hutt Street Post Office","ADELAIDE","SA",5000,"NO","NO","NO","NO","NO","CBD","Urban","Short rural","Long rural",null,"NO","ElectraNet"]
[null,"Endeavour Energy","Endeavour Energy",11247365823,"NSW","Electricity","Distribution","Revenue cap","Financial","June",5,5,5,5,"2014-19 Distribution Determination","51 Huntingwood Drive",null,"HUNTINGWOOD","NSW",2148,"PO Box 811",null,"SEVEN HILLS","NSW",1730,"YES","YES","YES","YES","NO","CBD","Urban","Short rural","Long rural",null,"YES","Endeavour Energy"]
[null,"Energex","Energex",40078849055,"Qld","Electricity","Distribution","Revenue cap","Financial","June",5,5,5,5,"2015-20 Distribution Determination","26 Reddacliff Street",null,"NEWSTEAD","Qld",4006,"26 Reddacliff Street",null,"NEWSTEAD","QLD",4006,"YES","YES","YES","NO","NO","CBD","Urban","Short rural","Long rural",null,"YES","Energex"]
[null,"Ergon Energy","Ergon Energy",50087646062,"Qld","Electricity","Distribution","Revenue cap","Financial","June",5,5,5,5,"2015-20 Distribution Determination","22 Walker Street",null,"TOWNSVILLE","Qld",4810,"Po Box 264",null,"FORTITUDE VALLEY","QLD",4006,"NO","YES","YES","YES","NO","CBD","Urban","Short rural","Long rural",null,"YES","Ergon Energy"]
[null,"Essential Energy","Essential Energy",37428185226,"NSW","Electricity","Distribution","Revenue cap","Financial","June",5,5,5,5,"2014-19 Distribution Determination","8 Buller Street",null,"PORT MACQUARIE","NSW",2444,"PO Box 5730",null,"PORT MACQUARIE","NSW",2444,"NO","YES","YES","YES","NO","CBD","Urban","Short rural","Long rural",null,"YES","Essential Energy"]
[null,"Evoenergy Distribution","Evoenergy Distribution",76670568688,"ACT","Electricity","Distribution","Revenue cap","Financial","June",5,5,5,5,"2014-19 Distribution Determination","40 Bunda Street",null,"CANBERRA","ACT",2600,"GPO BOX 366",null,"CANBERRA","ACT",2601,"NO","YES","YES","NO","NO","CBD","Urban","Short rural","Long rural",null,"NO","Evoenergy Distribution"]
[null,"Evoenergy Distribution (Tx Assets)","Evoenergy Distribution (Tx Assets)",76670568688,"ACT","Electricity","Distribution","Revenue cap","Financial","June",5,5,5,5,"distribution determination","40 Bunda Street",null,"CANBERRA","ACT",2600,"GPO BOX 366",null,"CANBERRA","ACT",2601,"NO","YES","YES","NO","NO","CBD","Urban","Short rural","Long rural",null,"NO","Evoenergy Distribution (Tx Assets)"]
[null,"Evoenergy Gas","Icon Distribution Investments Limited (ABN 83 073 025 224) and Jemena Networks (ACT) Pty Ltd (ABN 24 008 552 663)",76670568688,"ACT","Gas","Distribution","Weighted average price cap","Financial","June",5,5,5,"x",null,"40 Bunda Street",null,"CANBERRA","ACT",2600,"GPO BOX 366",null,"CANBERRA","ACT",2601,"NO","NO","NO","NO","NO","CBD","Urban","Short rural","Long rural",null,"NO","Evoenergy Gas"]
[null,"Jemena Electricity","Jemena Electricity",82064651083,"Vic","Electricity","Distribution","Revenue cap","Financial","June",5,5,5,2,"2016-20 Distribution Determination","Level 16","567 Collins Street","MELBOURNE","Vic",3000,"PO Box 16182",null,"MELBOURNE","Vic",8001,"NO","YES","YES","NO","NO","CBD","Urban","Short rural","Long rural",null,"YES","Jemena Electricity"]
[null,"JGN","Jemena Gas Networks (NSW) Ltd","003 004 322","NSW","Gas","Distribution","Weighted average price cap","Financial","June",5,5,5,null,null,null,null,null,null,null,null,null,null,null,null,"NO","NO","NO","NO","NO","CBD","Urban","Short rural","Long rural",null,"NO","JGN"]
[null,"Multinet Gas","Multinet Gas (DB No.1) Pty Ltd (ACN 086 026 986), Multinet Gas (DB No.2) Pty Ltd (ACN 086 230 122)","086026986","Vic","Gas","Distribution","Weighted average price cap","Calendar","December",5,5,5,"x",null,"43-45 Centreway",null,"MT WAVERLEY","Vic",3149,null,null,null,null,null,"NO","NO","NO","NO","NO","CBD","Urban","Short rural","Long rural",null,"NO","Multinet Gas"]
[null,"Murraylink","Murraylink",79181207909,"SA","Electricity","Transmission","Revenue cap","Financial","June",5,5,5,5,"transmission determination","Level 19","580 George Street","SYDNEY","NSW",2000,"PO Box R41",null,"ROYAL EXCHANGE","NSW",1225,"NO","NO","NO","NO","NO","CBD","Urban","Short rural","Long rural",null,"NO","Murraylink"]
[null,"Power and Water","Power and Water Corporation",15947352360,"NT","Electricity","Distribution","Revenue cap","Financial","June",5,5,5,"x","distribution determination","GPO Box 1921",null,"DARWIN","NT",801,"GPO Box 1921",null,"DARWIN","NT",801,"YES","YES","YES","YES","NO","CBD","Urban","Short rural","Long rural",null,"NO","Power and Water"]
[null,"Powercor Australia","Powercor Australia",89064651109,"Vic","Electricity","Distribution","Revenue cap","Financial","June",5,5,5,2,"2016-20 Distribution Determination","40 Market Street",null,"MELBOURNE","Vic",3000,"Locked bag 14090",null,"MELBOURNE","Vic",8001,"NO","YES","YES","YES","NO","CBD","Urban","Short rural","Long rural",null,"YES","Powercor Australia"]
[null,"Powerlink","Queensland Electricity Transmission Corporation Limited trading as Powerlink Queensland",82078849233,"Qld","Electricity","Transmission","Revenue cap","Financial","June",5,5,5,5,"transmission determination","33 Harold St",null,"VIRGINIA","Qld",4014,"PO Box 1193",null,"VIRGINIA","QLD",4014,"NO","NO","NO","NO","NO","CBD","Urban","Short rural","Long rural",null,"NO","Powerlink"]
[null,"Roma to Brisbane Pipeline","APT Petroleum Pipelines Limited t/a Roma to Brisbane Pipeline","009 737 393","Qld","Gas","Transmission","Weighted average price cap","Financial","June",5,5,5,"x","n/a","580 George Street",null,"SYDNEY","NSW",2000,"PO Box R41",null,"ROYAL EXCHANGE","NSW",1225,"NO","NO","NO","NO","NO","CBD","Urban","Short rural","Long rural",null,"NO","Roma to Brisbane Pipeline"]
[null,"SA Power Networks","SA Power Networks",13332330749,"SA","Electricity","Distribution","Revenue cap","Financial","June",5,5,5,5,"2015-20 Distribution Determination","1 Anzac Highway",null,"KESWICK","SA",5035,"GPO Box 77",null,"ADELAIDE","SA",5000,"YES","YES","YES","YES","NO","CBD","Urban","Short rural","Long rural",null,"YES","SA Power Networks"]
[null,"TasNetworks (D)","TasNetworks (D)",24167357299,"Tas","Electricity","Distribution","Revenue cap","Financial","June",5,5,5,5,"distribution determination","1-7 Maria Street",null,"LENAH VALLEY","Tas",7008,"PO Box 606",null,"MOONAH","Tas",7009,"YES","YES","YES","YES","YES","Critical Infrastructure","High density commercial","Urban","High density rural","Low density rural","YES","TasNetworks (D)"]
[null,"TasNetworks (T)","TasNetworks (T)",24167357299,"Tas","Electricity","Transmission","Revenue cap","Financial","June",5,5,5,5,"transmission determination","1-7 Maria Street",null,"LENAH VALLEY","Tas",7008,"PO Box 606",null,"MOONAH","Tas",7009,"NO","NO","NO","NO","NO","CBD","Urban","Short rural","Long rural",null,"NO","TasNetworks (T)"]
[null,"TransGrid","NSW Electricity Networks Operations Pty Ltd trading as TransGrid","70 250 995 390","NSW","Electricity","Transmission","Revenue cap","Financial","June",4,5,5,5,"transmission determination","180 Thomas Street",null,"SYDNEY","NSW",2000,"PO Box A1000",null,"SYDNEY SOUTH","NSW",1235,"NO","NO","NO","NO","NO","CBD","Urban","Short rural","Long rural",null,"NO","TransGrid"]
[null,"United Energy","United Energy",70064651029,"Vic","Electricity","Distribution","Revenue cap","Financial","June",5,5,5,2,"2016-20 Distribution Determination","43-45 Centreway",null,"MOUNT WAVERLEY","Vic",3149,"PO Box 449",null,"MOUNT WAVERLEY","Vic",3170,"NO","YES","YES","NO","NO","CBD","Urban","Short rural","Long rural",null,"YES","United Energy"]
[]
[]
[]
[]
[null,"The Reg Year Ending (dms_RYE) must be set to the last year of the regulatory period. For forecast data is is usually (FRCP_y5) for actual it is a single year (CRY). For historical actual data the RYE will need to be set manually in the business details sheet by setting the dms_Multiyear_flag to 1 and putting the correct value in 'dms_Specified_FinalYear. See cells C67:C68"]
[null,"dms_Model_List ","dms_Model_Name_Format1","dms_Worksheet_List","dms_Model_Span_List"]
[null,"ARR","Annual Reporting",{"$f":"IF(dms_MultiYear_ResponseFlag=\"yes\",\"NEW HISTORICAL ANNUAL REPORTING\",\"ANNUAL REPORTING\")","v":"ANNUAL REPORTING"},1]
[null,"CA","Category Analysis",{"$f":"IF(dms_MultiYear_ResponseFlag=\"yes\",\"NEW HISTORICAL CATEGORY ANALYSIS\",\"CATEGORY ANALYSIS\")","v":"CATEGORY ANALYSIS"},1]
[null,"CESS","Capitlal Expenditure","CAPITLAL EXPENDITURE SHARING SCHEMING",5]
[null,"CPI","CPI","CPI",5]
[null,"EB","Economic Benchmarking",{"$f":"IF(dms_MultiYear_ResponseFlag=\"yes\",\"NEW HISTORICAL ECONOMIC BENCHMARKING\",\"ECONOMIC BENCHMARKING\")","v":"ECONOMIC BENCHMARKING"},1]
[null,"Pricing","Pricing Proposal","PRICING PROPOSAL",5]
[null,"PTRM","Post Tax Revenue Model","POST TAX REVENUE MODEL",5]
[null,"Reset","Regulatory Reporting (Reset)","REGULATORY REPORTING STATEMENT",5]
[null,"RFM","Roll Forward Model","ROLL FORWARD MODEL",5]
[null,"WACC","Weighted Average Cost of Capital","WEIGHTED AVERAGE COST OF CAPITAL",1]
[]
[]
[]
[null,"Financial","Calendar",null,"PREVIOUS",null,"CURRENT",null,"FORTHCOMING"]
[null,"1987-88","1988","PRCP_y1",{"$f":"INDEX(INDIRECT(dms_RPT),dms_PRCP_start_row)","v":"2012-13"},"CRCP_y1",{"$f":"INDEX(INDIRECT(dms_RPT),dms_CRCP_start_row)","v":"2017-18"},{"$f":"FRCP_y1","v":"2022-23"},{"$f":"INDEX(INDIRECT(dms_RPT),dms_FRCP_start_row)","v":"2022-23"}]
[null,"1988-89","1989","PRCP_y2",{"$f":"INDEX(INDIRECT(dms_RPT),dms_PRCP_start_row+1)","v":"2013-14"},"CRCP_y2",{"$f":"INDEX(INDIRECT(dms_RPT),dms_CRCP_start_row+1)","v":"2018-19"},"FRCP_y2",{"$f":"INDEX(INDIRECT(dms_RPT),dms_FRCP_start_row+1)","v":"2023-24"}]
[null,"1989-90","1990","PRCP_y3",{"$f":"INDEX(INDIRECT(dms_RPT),dms_PRCP_start_row+2)","v":"2014-15"},"CRCP_y3",{"$f":"INDEX(INDIRECT(dms_RPT),dms_CRCP_start_row+2)","v":"2019-20"},"FRCP_y3",{"$f":"INDEX(INDIRECT(dms_RPT),dms_FRCP_start_row+2)","v":"2024-25"}]
[null,"1990-91","1991","PRCP_y4",{"$f":"INDEX(INDIRECT(dms_RPT),dms_PRCP_start_row+3)","v":"2015-16"},"CRCP_y4",{"$f":"INDEX(INDIRECT(dms_RPT),dms_CRCP_start_row+3)","v":"2020-21"},"FRCP_y4",{"$f":"INDEX(INDIRECT(dms_RPT),dms_FRCP_start_row+3)","v":"2025-26"}]
[null,"1991-92","1992","PRCP_y5",{"$f":"INDEX(INDIRECT(dms_RPT),dms_PRCP_start_row+4)","v":"2016-17"},"CRCP_y5",{"$f":"INDEX(INDIRECT(dms_RPT),dms_CRCP_start_row+4)","v":"2021-22"},"FRCP_y5",{"$f":"INDEX(INDIRECT(dms_RPT),dms_FRCP_start_row+4)","v":"2026-27"}]
[null,"1992-93","1993","PRCP_y6",{"$f":"INDEX(INDIRECT(dms_RPT),dms_PRCP_start_row+5)","v":"2017-18"},"CRCP_y6",{"$f":"INDEX(INDIRECT(dms_RPT),dms_CRCP_start_row+5)","v":"2022-23"},"FRCP_y6",{"$f":"INDEX(INDIRECT(dms_RPT),dms_FRCP_start_row+5)","v":"2027-28"}]
[null,"1993-94","1994","PRCP_y7",{"$f":"INDEX(INDIRECT(dms_RPT),dms_PRCP_start_row+6)","v":"2018-19"},"CRCP_y7",{"$f":"INDEX(INDIRECT(dms_RPT),dms_CRCP_start_row+6)","v":"2023-24"},"FRCP_y7",{"$f":"INDEX(INDIRECT(dms_RPT),dms_FRCP_start_row+6)","v":"2028-29"}]
[null,"1994-95","1995","PRCP_y8",{"$f":"INDEX(INDIRECT(dms_RPT),dms_PRCP_start_row+7)","v":"2019-20"},"CRCP_y8",{"$f":"INDEX(INDIRECT(dms_RPT),dms_CRCP_start_row+7)","v":"2024-25"},"FRCP_y8",{"$f":"INDEX(INDIRECT(dms_RPT),dms_FRCP_start_row+7)","v":"2029-30"}]
[null,"1995-96","1996","PRCP_y9",{"$f":"INDEX(INDIRECT(dms_RPT),dms_PRCP_start_row+8)","v":"2020-21"},"CRCP_y9",{"$f":"INDEX(INDIRECT(dms_RPT),dms_CRCP_start_row+8)","v":"2025-26"},"FRCP_y9",{"$f":"INDEX(INDIRECT(dms_RPT),dms_FRCP_start_row+8)","v":"2030-31"}]
[null,"1996-97","1997","PRCP_y10",{"$f":"INDEX(INDIRECT(dms_RPT),dms_PRCP_start_row+9)","v":"2021-22"},"CRCP_y10",{"$f":"INDEX(INDIRECT(dms_RPT),dms_CRCP_start_row+9)","v":"2026-27"},"FRCP_y10",{"$f":"INDEX(INDIRECT(dms_RPT),dms_FRCP_start_row+9)","v":"2031-32"}]
[null,"1997-98","1998","PRCP_y11",{"$f":"INDEX(INDIRECT(dms_RPT),dms_PRCP_start_row+10)","v":"2022-23"},"CRCP_y11",{"$f":"INDEX(INDIRECT(dms_RPT),dms_CRCP_start_row+10)","v":"2027-28"},"FRCP_y11",{"$f":"INDEX(INDIRECT(dms_RPT),dms_FRCP_start_row+10)","v":"2032-33"}]
[null,"1998-99","1999","PRCP_y12",{"$f":"INDEX(INDIRECT(dms_RPT),dms_PRCP_start_row+11)","v":"2023-24"},"CRCP_y12",{"$f":"INDEX(INDIRECT(dms_RPT),dms_CRCP_start_row+11)","v":"2028-29"},"FRCP_y12",{"$f":"INDEX(INDIRECT(dms_RPT),dms_FRCP_start_row+11)","v":"2033-34"}]
[null,"1999-00","2000","PRCP_y13",{"$f":"INDEX(INDIRECT(dms_RPT),dms_PRCP_start_row+12)","v":"2024-25"},"CRCP_y13",{"$f":"INDEX(INDIRECT(dms_RPT),dms_CRCP_start_row+12)","v":"2029-30"},"FRCP_y13",{"$f":"INDEX(INDIRECT(dms_RPT),dms_FRCP_start_row+12)","v":"2034-35"}]
[null,"2000-01","2001","PRCP_y14",{"$f":"INDEX(INDIRECT(dms_RPT),dms_PRCP_start_row+13)","v":"2025-26"},"CRCP_y14",{"$f":"INDEX(INDIRECT(dms_RPT),dms_CRCP_start_row+13)","v":"2030-31"},"FRCP_y14",{"$f":"INDEX(INDIRECT(dms_RPT),dms_FRCP_start_row+13)","v":"2035-36"}]
[null,"2001-02","2002","PRCP_y15",{"$f":"INDEX(INDIRECT(dms_RPT),dms_PRCP_start_row+14)","v":"2026-27"},"CRCP_y15",{"$f":"INDEX(INDIRECT(dms_RPT),dms_CRCP_start_row+14)","v":"2031-32"},"FRCP_y15",{"$f":"INDEX(INDIRECT(dms_RPT),dms_FRCP_start_row+14)","v":"2036-37"}]
[null,"2002-03","2003","PRCP_y16",{"$f":"INDEX(INDIRECT(dms_RPT),dms_PRCP_start_row+15)","v":"2027-28"},"CRCP_y16",{"$f":"INDEX(INDIRECT(dms_RPT),dms_CRCP_start_row+15)","v":"2032-33"},"FRCP_y16",{"$f":"INDEX(INDIRECT(dms_RPT),dms_FRCP_start_row+15)","v":{"$error":"#REF!"}}]
[null,"2003-04","2004"]
[null,"2004-05","2005"]
[null,"2005-06","2006",null,"CRY - FRY"]
[null,"2006-07","2007","dms_y1",{"$f":"IFERROR(INDEX(INDIRECT(dms_RPT),dms_CRY_start_row),0)","v":"2021-22"}]
[null,"2007-08","2008","dms_y2",{"$f":"IFERROR(INDEX(INDIRECT(dms_RPT),dms_CRY_start_row+1),0)","v":"2022-23"}]
[null,"2008-09","2009","dms_y3",{"$f":"IFERROR(INDEX(INDIRECT(dms_RPT),dms_CRY_start_row+2),0)","v":"2023-24"}]
[null,"2009-10",2010,"dms_y4",{"$f":"IFERROR(INDEX(INDIRECT(dms_RPT),dms_CRY_start_row+3),0)","v":"2024-25"}]
[null,"2010-11",2011,"dms_y5",{"$f":"IFERROR(INDEX(INDIRECT(dms_RPT),dms_CRY_start_row+4),0)","v":"2025-26"}]
[null,"2011-12",2012,"dms_y6",{"$f":"IFERROR(INDEX(INDIRECT(dms_RPT),dms_CRY_start_row+5),0)","v":"2026-27"}]
[null,"2012-13",2013,"dms_y7",{"$f":"IFERROR(INDEX(INDIRECT(dms_RPT),dms_CRY_start_row+6),0)","v":"2027-28"}]
[null,"2013-14",2014,"dms_y8",{"$f":"IFERROR(INDEX(INDIRECT(dms_RPT),dms_CRY_start_row+7),0)","v":"2028-29"}]
[null,"2014-15",2015,"dms_y9",{"$f":"IFERROR(INDEX(INDIRECT(dms_RPT),dms_CRY_start_row+8),0)","v":"2029-30"}]
[null,"2015-16",2016,"dms_y10",{"$f":"IFERROR(INDEX(INDIRECT(dms_RPT),dms_CRY_start_row+9),0)","v":"2030-31"}]
[null,"2016-17",2017,"dms_y11",{"$f":"IFERROR(INDEX(INDIRECT(dms_RPT),dms_CRY_start_row+10),0)","v":"2031-32"}]
[null,"2017-18",2018,"dms_y12",{"$f":"IFERROR(INDEX(INDIRECT(dms_RPT),dms_CRY_start_row+11),0)","v":"2032-33"}]
[null,"2018-19",2019,"dms_y13",{"$f":"IFERROR(INDEX(INDIRECT(dms_RPT),dms_CRY_start_row+12),0)","v":"2033-34"}]
[null,"2019-20",2020,"dms_y14",{"$f":"IFERROR(INDEX(INDIRECT(dms_RPT),dms_CRY_start_row+13),0)","v":"2034-35"}]
[null,"2020-21",2021,"dms_y15",{"$f":"IFERROR(INDEX(INDIRECT(dms_RPT),dms_CRY_start_row+14),0)","v":"2035-36"}]
[null,"2021-22",2022,"dms_y16",{"$f":"IFERROR(INDEX(INDIRECT(dms_RPT),dms_CRY_start_row+15),0)","v":"2036-37"}]
[null,"2022-23",2023]
[null,"2023-24",2024]
[null,"2024-25",2025]
[null,"2025-26",2026]
[null,"2026-27",2027]
[null,"2027-28",2028]
[null,"2028-29",2029]
[null,"2029-30",2030]
[null,"2030-31",2031]
[null,"2031-32",2032]
[null,"2032-33",2033]
[null,"2033-34",2034]
[null,"2034-35",2035]
[null,"2035-36",2036]
[null,"2036-37","2037"]

{"sheet":"AER ETL","index":2,"n_rows":145,"n_cols":8,"rows_kept":145,"cut":false,"hidden":true,"merged":[[34,0,59,0],[34,37,34,58],[34,68,34,89],[32,37,32,58],[71,1,73,1],[32,68,32,89],[33,37,33,58],[33,68,33,89],[11,0,15,0],[12,4,12,8],[14,2,14,4],[18,0,25,0],[26,0,31,0]]}
[null,"AER ETL INFORMATION"]
[]
[null,"USES NAMED RANGES FLAG","yes","dms_Defined_Names_Used"]
[]
[null,"IF THIS IS AN ABC RIN - make sure the the named range CRY is applied and the named range dms_dollar_nom_UOM is applied"]
[null,"IF THIS IS A RESET RIN - make sure the named ranges CRY and dms_dollar_nom_UOM are NOT present in the workbook"]
[null,"FOR ABC RINS THAT SPAN MULTIPLE YEARS - make sure MultiYear Flag is set and final year entered as required"]
[]
[null,"Full trading name",{"$f":"INDEX(dms_TradingNameFull_List,MATCH(dms_TradingName,dms_TradingName_List))","v":"APT Petroleum Pipelines Limited t/a Roma to Brisbane Pipeline"},null,"dms_TradingNameFull"]
[null,"Trading name",{"$f":"dms_TradingName","v":"Roma to Brisbane Pipeline"}]
["Selected here","Model / RIN","Reset","dms_Model"]
["Read from Business & other details","Source","Regulatory proposal","dms_Source"]
[null,"Data quality","Consolidated","For DB purposes this is always Consoldiated"]
[null,"Data status","Public","For DB purposes this is always Public"]
[null,"Amendment reason",{"$f":"dms_Amendment_Text","v":"."},null,null,"dms_AmendmentReason"]
[null,"Submission date",{"$f":"dms_Typed_Submission_Date","v":"22/07/21"},"dms_SubmissionDate"]
[]
["Redundant","EBSS - First application of scheme in forthcoming period?","No"]
["Pre-populated from lookup table","Data ingestion data quality",{"$f":"dms_Selected_Quality","v":"Consolidated"},"dms_DataQuality","=IF(dms_DQ_2=\"Confidential\",\"Consolidated\",\"Public\")"]
[null,"Sector",{"$f":"INDEX(dms_Sector_List,MATCH(dms_TradingName,dms_TradingName_List))","v":"Gas"},"dms_Sector","=INDEX(dms_Sector_List,MATCH(dms_TradingName,dms_TradingName_List))"]
[null,"Segment",{"$f":"INDEX(dms_Segment_List,MATCH(dms_TradingName,dms_TradingName_List))","v":"Transmission"},"dms_Segment","=INDEX(dms_Segment_List,MATCH(dms_TradingName,dms_TradingName_List))"]
[null,"Regulatory Year Ending",{"$f":"dms_RYE_result","v":"2027"},"dms_RYE","=IF(dms_MultiYear_Flag=1,LEFT(dms_Specified_FinalYear,2)&RIGHT(dms_Specified_FinalYear,2),INDEX(dms_RYE_Formula_Result,MATCH(dms_Model,dms_Model_List)))"]
[null,"Reporting Period Type",{"$f":"INDEX(dms_RPT_List,MATCH(dms_TradingName,dms_TradingName_List))","v":"Financial"},"dms_RPT","=INDEX(dms_RPT_List,MATCH(dms_TradingName,dms_TradingName_List))"]
[null,"EB/CA Unit of Measure for Monetary Values","$0s","dms_dollar_nom_UOM","If the cover sheet is attached to an ABC RIN apply the NAMED RANGE to the cell"]
[null,"Security Classification","Public","dms_Classification","Always Public"]
[null,"Jurisdiction",{"$f":"INDEX(dms_JurisdictionList,MATCH(dms_TradingName,dms_TradingName_List))","v":"Qld"},"dms_Jurisdiction","=INDEX(dms_JurisdictionList,MATCH(dms_TradingName,dms_TradingName_List))"]
["Relevant for PTRM, RFMs and Reset RINS","$ REAL REFERENCES"]
[null,"Does the named range CRY exist in this file? ",{"$f":"IFERROR(CRY,\"NO\")","v":"2021-22"}]
[null,"CRY-1  (last full calendar year before CRY)",{"$f":"IFERROR(IF(dms_RPT=\"calendar\",CRY-1,LEFT(CRY,4)),\"CRY not present\")","v":"2021"},"dms_Cal_Year_B4_CRY","'=IF(dms_RPT=\"financial\",VALUE(LEFT(dms_SingleYear_FinalYear_Result,4)),VALUE(LEFT(dms_SingleYear_FinalYear_Result,4)-1))"]
[null,"Dollar $ real month",{"$f":"INDEX(dms_RPTMonth_List,MATCH(dms_TradingName,dms_TradingName_List))","v":"June"},"dms_RPTMonth","=INDEX(dms_RPTMonth_List,MATCH(dms_TradingName,dms_TradingName_List))"]
[null,"Dollar $ real  (the last month before the FRCP_y1)",{"$f":"IF(dms_SingleYearModel=\"yes\",CONCATENATE(dms_RPTMonth)&\" \"&VALUE((LEFT(dms_CRY_start_year,4))),CONCATENATE(dms_RPTMonth)&\" \"&dms_DollarReal_year)","v":"June 2022"},"dms_DollarReal","=IF(SUM(dms_SingleYear_Model)>0,CONCATENATE(dms_RPTMonth)&\" \"&VALUE((LEFT(CRY,2))&RIGHT(CRY,2)),CONCATENATE(dms_RPTMonth)&\" \"&VALUE((LEFT(dms_RYE,2)&RIGHT(dms_RYE,2))))"]
[null,"Dollar $ real previous year (PRCP_y5)",{"$f":"CONCATENATE(dms_RPTMonth)&\" \"&dms_Previous_DollarReal_year","v":"June 2017"},"dms_DollarReal_Prev","=IF(SUM(dms_SingleYear_Model)>0,CONCATENATE(dms_RPTMonth)&\" \"&VALUE(((LEFT(CRY,2))&RIGHT(CRY,2))-1),CONCATENATE(dms_RPTMonth)&\" \"&VALUE(((LEFT(dms_CRCP_FirstYear_Result,2)&RIGHT(dms_CRCP_FirstYear_Result,2))))-1)"]
[null,"PTRM/ RFMs"]
[null,"Form of control",{"$f":"INDEX(dms_FormControl_List,MATCH(dms_TradingName,dms_TradingName_List))","v":"Weighted average price cap"},"dms_FormControl","=INDEX(dms_FormControl_List,MATCH(dms_TradingName,dms_TradingName_List))"]
["All potential values for Regulatory Years or RYEs as calculated","This block works out the various RYE's for ALL RIN types and MODELS"]
[null,"dms_start_year",{"$f":"FRCP_y1","v":"2022-23"},"=FRCP_y1","FRCP_y1 from cover sheet"]
[null,"dms_CRY_start_year",{"$f":"IFERROR(CRY,CRCP_y4)","v":"2021-22"},"=IFERROR(CRY,CRCP_y4)"]
[null,"dms_CRY_start_row",{"$f":"IFERROR(MATCH(dms_CRY_start_year,INDIRECT(dms_RPT),0),0)","v":35},"=IFERROR(MATCH(dms_CRY_start_year,INDIRECT(dms_RPT),0),0)"]
[null,"dms_FRCP_start_row",{"$f":"MATCH(dms_start_year,INDIRECT(dms_RPT),0)","v":36},"=MATCH(dms_start_year,INDIRECT(dms_RPT),0)","Uses FRCP_y1 as a start reference"]
[null,"dms_CRCP_start_row",{"$f":"dms_FRCP_start_row-dms_CRCPlength_Num","v":31},"=dms_FRCP_start_row-dms_CRCPlength_Num","Uses the value in dms_CRCPlength_Num"]
[null,"dms_PRCP_start_row",{"$f":"dms_FRCP_start_row-dms_CRCPlength_Num-dms_PRCPlength_Num","v":26},"=dms_FRCP_start_row-dms_CRCPlength_Num-dms_PRCPlength_Num","Uses the value in dms_CRCPlength_Num and dms_PRCPlength_Num"]
[null,"dms_RYE_start_row",{"$f":"dms_FRCP_start_row+(dms_FRCPlength_Num-1)","v":40},"=dms_FRCP_start_row+(dms_FRCPlength_Num-1)","Uses the value in dms_FRCPlength_Num-1"]
[null,"FRCP_start_year",{"$f":"INDEX(INDIRECT(dms_RPT),dms_FRCP_start_row)","v":"2022-23"},"=INDEX(INDIRECT(dms_RPT),dms_FRCP_start_row)","Converts the FRCP start row to display the year"]
[null,"CRCP_start_year",{"$f":"INDEX(INDIRECT(dms_RPT),dms_CRCP_start_row)","v":"2017-18"},"=INDEX(INDIRECT(dms_RPT),dms_CRCP_start_row)","Converts the CRCP start row to display the year"]
[null,"PRCP_start_year",{"$f":"INDEX(INDIRECT(dms_RPT),dms_PRCP_start_row)","v":"2012-13"},"=INDEX(INDIRECT(dms_RPT),dms_PRCP_start_row)","Converts the PRCP start row to display the year"]
[null,"FRCP_final_year",{"$f":"INDEX(INDIRECT(dms_RPT),dms_FRCP_start_row+dms_FRCPlength_Num-1)","v":"2026-27"},"=INDEX(INDIRECT(dms_RPT),dms_FRCP_start_row+dms_FRCPlength_Num-1)","Finds the FRCP final year"]
[null,"CRCP_final_year",{"$f":"INDEX(INDIRECT(dms_RPT),dms_CRCP_start_row+dms_CRCPlength_Num-1)","v":"2021-22"},"=INDEX(INDIRECT(dms_RPT),dms_CRCP_start_row+dms_CRCPlength_Num-1)","Finds the CRCP final year"]
[null,"PRCP_final_year",{"$f":"INDEX(INDIRECT(dms_RPT),dms_PRCP_start_row+dms_FRCPlength_Num-1)","v":"2016-17"},"=INDEX(INDIRECT(dms_RPT),dms_PRCP_start_row+dms_FRCPlength_Num-1)","Finds the PRCP final year"]
[null,"dms_Reset_final_year",{"$f":"INDEX(INDIRECT(dms_RPT),dms_RYE_start_row)","v":"2026-27"},"=INDEX(INDIRECT(dms_RPT),dms_RYE_start_row)","For Resets and PTRM/RFMs (same as FRCP_final_year)"]
[null,"dms_SpecifiedYear_final_year",{"$f":"FRY","v":"2025-26"},"=FRY","FRY from cover sheet"]
[null,"dms_DollarReal_year",{"$f":"LEFT(CRCP_final_year,2)&RIGHT(CRCP_final_year,2)","v":"2022"},"=LEFT(CRCP_final_year,2)&RIGHT(CRCP_final_year,2)","Uses the value in CRCP_final_year"]
[null,"dms_Previous_DollarReal_year",{"$f":"LEFT(PRCP_final_year,2)&RIGHT(PRCP_final_year,2)","v":"2017"},"=LEFT(PRCP_final_year,2)&RIGHT(PRCP_final_year,2)","Uses the value in PRCP_final_year"]
[null,"dms_CRY_RYE",{"$f":"IFERROR(LEFT(CRY,2)&RIGHT(CRY,2),0)","v":"2022"},"=IFERROR(LEFT(CRY,2)&RIGHT(CRY,2),0)","For ABC single year RINS"]
[null,"dms_Reset_RYE",{"$f":"IF(dms_Model_Span>1,IF(dms_Model=\"RFM\",(LEFT(dms_DollarReal_year,2)&RIGHT(dms_DollarReal_year,2)),(LEFT(dms_Reset_final_year,2)&RIGHT(dms_Reset_final_year,2))),0)","v":"2027"},"=IF(dms_Model_Span>1,IF(dms_Model=\"RFM\",(LEFT(dms_DollarReal_year,2)&RIGHT(dms_DollarReal_year,2)),(LEFT(dms_Reset_final_year,2)&RIGHT(dms_Reset_final_year,2))),0)","If model span > 1 then uses dms_Reset_RYE otherwise it's a multi year ABC and uses dms_Specified_RYE"]
[null,"dms_Specified_RYE",{"$f":"IF(dms_MultiYear_ResponseFlag=\"Yes\",(LEFT(dms_Specified_FinalYear,2)&RIGHT(dms_Specified_FinalYear,2)),0)","v":0},"=IF(dms_MultiYear_ResponseFlag=\"Yes\",(LEFT(dms_Specified_FinalYear,2)&RIGHT(dms_Specified_FinalYear,2)),0)","If multi year ABC - uses dms_Specified_FinalYear"]
[null,"dms_Model_Span",{"$f":"INDEX(dms_Model_Span_List,MATCH(dms_Model,dms_Model_List))","v":5},"=INDEX(dms_Model_Span_List,MATCH(dms_Model,dms_Model_List))","A result of 5 is used to signify that it is more than 1 year span"]
[null,"dms_RYE_result",{"$f":"IF(dms_MultiYear_ResponseFlag=\"yes\",dms_Specified_RYE,(IF(dms_Model_Span>1,dms_Reset_RYE,dms_CRY_RYE)))","v":"2027"},"=IF(dms_MultiYear_ResponseFlag=\"yes\",dms_Specified_RYE,(IF(dms_Model_Span>1,dms_Reset_RYE,dms_CRY_RYE)))","Nested IF - feeds into dms_RYE"]
[null,"dms_Reset_Span",{"$f":"IF(dms_Reset_RYE>0,CONCATENATE(FRCP_y1,\" to \",FRCP_final_year),0)","v":"2022-23 to 2026-27"},"=IF(dms_Reset_RYE>0,CONCATENATE(FRCP_y1,\" to \",FRCP_final_year),0)","Reset span of years as text"]
[null,"dms_SpecifiedYear_Span",{"$f":"IF(dms_Specified_RYE>0,CONCATENATE(CRY,\" to \",dms_Specified_FinalYear),0)","v":0},"=IF(dms_Specified_RYE>0,CONCATENATE(CRY,\" to \",dms_Specified_FinalYear),0)","Multi year ABC span of years as text"]
[null,"dms_Header_Span",{"$f":"IF(dms_MultiYear_Flag=1,dms_SpecifiedYear_Span,IF(dms_Model_Span>1,dms_y1&\" - \"&FRCP_final_year,CRY))","v":"2021-22 - 2026-27"},"=IF(dms_MultiYear_Flag=1,dms_SpecifiedYear_Span,IF(dms_Model_Span>1,dms_Reset_Span,CRY))","NESTED IF - for Sheet Headers"]
[null,"ABC RINS THAT SPAN MULTIPLE YEARS"]
[null,"This is a multi year ABC RIN?","No"]
[null,null,{"$f":"IF(dms_MultiYear_ResponseFlag=\"No\",0,1)","v":0},"dms_MultiYear_Flag","This is set from the answer provided above"]
[null,null,{"$f":"IF(dms_MultiYear_Flag=1,FRY,\"not a Multiple year submission\")","v":"not a Multiple year submission"},"dms_Specified_FinalYear","The result here is returned to dms_CRCP_FinalYear_Result if response to Q in C73 is \"yes\" and dms_MultiYear_Flag is set to 1"]
[null," Start year for 5.2 in Multi year ABC RINS",{"$f":"IFERROR(IF(dms_MultiYear_Flag=1,FRY,CRY),\"not an ABC\")","v":"2021-22"},"dms_0502_Inst_Year","=IF(dms_MultiYear_Flag=1,FRY,CRY)",null,"For single year RINS this is CRY - multi year RINS need to start a the end of the span of years (ie. FRY)"]
[null,"WHAT IS THE RYE?"]
[null,"Reg Period Lengths"]
[null,"PRCP length in years",{"$f":"INDEX(dms_PRCPlength_List,MATCH(dms_TradingName,dms_TradingName_List))","v":5},"dms_PRCPlength_Num","=INDEX(dms_PRCPlength_List,MATCH(dms_TradingName,dms_TradingName_List))"]
[null,"CRCP length in years",{"$f":"INDEX(dms_CRCPlength_List,MATCH(dms_TradingName,dms_TradingName_List))","v":5},"dms_CRCPlength_Num","=INDEX(dms_CRCPlength_List,MATCH(dms_TradingName,dms_TradingName_List))"]
[null,"FRCP length in years",{"$f":"INDEX(dms_FRCPlength_List,MATCH(dms_TradingName,dms_TradingName_List))","v":5},"dms_FRCPlength_Num","=INDEX(dms_FRCPlength_List,MATCH(dms_TradingName,dms_TradingName_List))"]
[null,"Single year RIN?"]
[null,"Single Year ABC RIN ?",{"$f":"IF(dms_Model=\"EB\",1,0)","v":0},"dms_EB"]
[null,null,{"$f":"IF(dms_Model=\"CA\",1,0)","v":0},"dms_CA","=dms_SingleYear_Model"]
[null,null,{"$f":"IF(dms_Model=\"ARR\",1,0)","v":0},"dms_ARR"]
[null,"Is this a single Year ABC RIN?",{"$f":"IF(SUM(dms_SingleYear_Model)=1,\"yes\",\"no\")","v":"no"},"dms_SingleYearModel","=IF(SUM(dms_SingleYear_Model)=1,\"yes\",\"no\")"]
[null,"Single Year Final Year Result",{"$f":"IF(AND(dms_SingleYearModel=\"yes\",dms_MultiYear_Flag=0),CRY,0)","v":0},"dms_SingleYear_FinalYear_Result","=IFERROR(IF(SUM(dms_SingleYear_Model)<>0,(INDIRECT(dms_SingleYear_FinalYear_Ref)),\"not a single year RIN\"),\"CRY not present\")"]
[null,"Multi year RIN?"]
[]
[null,"Multi Year Reset/Model?",{"$f":"IF(dms_Model_Span>1,\"yes\",\"no\")","v":"yes"}]
[null,"Final year result for Reset/Model",{"$f":"IF(dms_Model_Span>1,dms_Reset_final_year,0)","v":"2026-27"},"dms_MultiYear_FinalYear_Result","dms_CRCP_FinalYear_Result"]
[]
[null,"Multi Year ABC RIN?",{"$f":"IF(dms_MultiYear_Flag=1,\"yes\",\"no\")","v":"no"},"dms_MultiYear_ABC_RIN"]
[null,"Final year result for ABC multi year",{"$f":"IF(dms_MultiYear_Flag=1,C50,0)","v":0}]
[]
[null,"EB RINS"]
[null,"Calendar Year for table 3.6 data",{"$f":"IFERROR(IF(dms_Segment=\"Transmission\",dms_Cal_Year_B4_CRY,CRY),\"CRY not present\")","v":"2021"},"dms_0306_Year","=IF(dms_Segment=\"Transmission\",dms_Cal_Year_B4_CRY,CRY)"]
[null,"CA RINS"]
[null,"Find how many rows in tables 6.3 sustained interruptions?",null,null,"dms_060301_MaxRows only returns a valid value when cover sheet is attached to a CA file"]
[null,null,{"$f":"IF(dms_Model<>\"CA\",\"not a CA\",\"Is a CA\")","v":"not a CA"},null,"=IF(dms_Model<>\"CA\",\"not a CA\",\"Is a CA\")"]
[null,"dms_060301_Avg_Duration_Sustained_Int_Values present?",{"$f":"IFERROR(IF(INDEX(dms_060301_Avg_Duration_Sustained_Int_Values,1,1)<>\"\",\"yes\",\"no\"),\"no\")","v":"no"},"dms_060301_checkvalue","=IFERROR(IF(INDEX(dms_060301_Avg_Duration_Sustained_Int_Values,1,1)<>\"\",\"yes\",\"no\"),\"no\")"]
[null,null,{"$f":"IF(AND(dms_Model=\"CA\",(dms_060301_checkvalue=\"no\")),\"error - NR not present\",\"no errors\")","v":"no errors"},null,"=IF(AND(dms_Model=\"CA\",(dms_060301_checkvalue=\"no\")),\"error - NR not present\",\"no errors\")"]
[null,"Table 6.3.1 - last row reference",{"$f":"IFERROR(IF(dms_Model=\"CA\",LOOKUP(2,1/(dms_060301_Avg_Duration_Sustained_Int_Values<>\"\"),(ROW(dms_060301_Avg_Duration_Sustained_Int_Values))),\"not a CA\"),\"6.3 not present\")","v":"not a CA"},"dms_060301_LastRow","=IFERROR(IF(dms_Model=\"CA\",LOOKUP(2,1/(dms_060301_Avg_Duration_Sustained_Int_Values<>\"\"),(ROW(dms_060301_Avg_Duration_Sustained_Int_Values))),\"not a CA\"),\"6.3 not present\")"]
[null,"Table 6.3.1 - max number rows",{"$f":"IFERROR(IF(dms_Model=\"CA\",(dms_060301_LastRow-15),\"not a CA\"),\"error\")","v":"not a CA"},"dms_060301_MaxRows","=IFERROR(IF(dms_Model=\"CA\",(dms_060301_LastRow-15),\"not a CA\"),\"error\")"]
[null,"Table 6.6.3 - Public lighting repair - no. business days",{"$f":"INDEX(dms_663_List,MATCH(dms_TradingName,dms_TradingName_List))","v":"x"},"dms_663","=INDEX(dms_663_List,MATCH(dms_TradingName,dms_TradingName_List))"]
[null,"ARR or RESET RINS"]
[null,"How many rows in tables 6.1 or 6.7?  (leap year?)","insert dms_LeapYear NR if required",null,"'dms_LeapYear is used to determine dms_060701_Max_Rows BUT it is only found on worksheet 6.1 or 6.7 and the date value in the cell is used to determine whether it is a leap year"]
[null,"Is dms_LeapYear named range present?",{"$f":"IFERROR(IF(dms_LeapYear,\"yes\"),\"no\")","v":"no"}]
[null,"Table 6.7.1 - includes a leap year?",{"$f":"\nIFERROR(IF(MONTH(DATE(YEAR(dms_LeapYear),2,29))=2,\"is a leap year\",\"not a leap year\"),\n\"dms_LeapYear not present\")","v":"dms_LeapYear not present"},"dms_LeapYear_Result","=IFERROR(IF(MONTH(DATE(YEAR(dms_LeapYear),2,29))=2,\"is a leap year\",\"not a leap year\"),\"dms_LeapYear not present\")"]
[null,"MaxRows if Reset and leap year",{"$f":"IF(dms_LeapYear_Result=\"is a leap year\",1827,1826)","v":1826},"dms_060701_Reset_MaxRows","=IF(dms_LeapYear_Result=\"is a leap year\",1827,1826)",null,null,"number of days present in Reset RIN table"]
[null,"MaxRows if ARR and leap year",{"$f":"IF(dms_LeapYear_Result=\"is a leap year\",366,365)","v":365},"dms_060701_ARR_MaxRows","=IF(dms_LeapYear_Result=\"is a leap year\",366,365)",null,null,"number of days present in ARR RIN table"]
[null,"Table 6.7.1 - Max Rows (leap year/ non leap year)",{"$f":"IF(dms_Model=\"ARR\",dms_060701_ARR_MaxRows,IF(dms_Model=\"Reset\",dms_060701_Reset_MaxRows,\"not a relevant RIN type\"))","v":1826},"dms_060701_MaxRows","=IF(dms_Model=\"ARR\",dms_060701_ARR_MaxRows,IF(dms_Model=\"Reset\",dms_060701_Reset_MaxRows,\"not a relevant RIN type\"))"]
[null,"How many columns in 6.7?   (4 or 5 feeder categories)",{"$f":"IF(dms_FifthFeeder_flag_NSP=\"NO\",\"This NSP has only 4 feeder categories\",\"This NSP has 5 feeder categories\")","v":"This NSP has only 4 feeder categories"}]
[null,"Table 6.7.1 - Last column (# of feeder categories > 4)",{"$f":"IF(dms_FifthFeeder_flag_NSP=\"NO\",10,12)","v":10},"dms_060701_MaxCols","=IF(dms_FifthFeeder_flag_NSP=\"NO\",8,10)"]
[null,"Table 6.7.1 - Number of offset rows",{"$f":"IF(dms_Model=\"ARR\",15,9)","v":9},"dms_060701_OffsetRows","=IF(dms_Model=\"ARR\",15,9)"]
[null,"Start date for telephone answering in 6.1 or 6.7?",null,null,"Using 060101 as naming standard not 060701 for start dates"]
[null,"Table 6.1.1 and 6.7.1 - Start Date as Text",{"$f":"IF(dms_SingleYearModel=\"yes\",(CONCATENATE(IF(LEN(CRY)=4,\"1-Jan-\",\"1-Jul-\"),LEFT(CRY,4))),(CONCATENATE(IF(LEN(PRCP_y4)=4,\"1-Jan-\",\"1-Jul-\"),LEFT(PRCP_y4,4))))","v":"1-Jul-2015"},"dms_060101_StartDateTxt","=IF(SUM(dms_SingleYear_Model)>1,(CONCATENATE(IF(LEN(CRY)=4,\"1-Jan-\",\"1-Jul-\"),LEFT(CRY,4))),(CONCATENATE(IF(LEN(CRCP_y4)=4,\"1-Jan-\",\"1-Jul-\"),LEFT(CRCP_y4,4))))"]
[null,"Table 6.1.1 and 6.7.1 - Start Date as Date Value",{"$f":"DATEVALUE(dms_060701_StartDateTxt)","v":42186},"dms_060101_StartDateVal","=DATEVALUE(dms_060701_StartDateTxt)"]
[null,"ARRs"]
[null,"How many rows in table 6.8?","insert dms_060801_StartCell NR if required",null,"dms_060801_StartCell is only found on worksheet 6.8 and is used to determine the starting date for the date range"]
[null,"Is dms_060801_StartCell named range present?","yes",null,"=IFERROR(IF((ROW(dms_060801_StartCell)-1)=1,\"yes\",\"yes\"),\"no\")"]
[null,"Table 6.8 - Number of offset rows",12,"dms_0608_OffsetRows","=IFERROR(IF(dms_Model=\"ARR\",(ROW(dms_060801_StartCell)-1),\"not an ARR\"),\"6.8 error\")"]
[null,"Table 6.8 - Last row","0","dms_0608_LastRow","=IFERROR(IF(dms_060801_StartCell<>\"\",IF(dms_Model=\"ARR\",(LOOKUP(2,1/(dms_060801_01_Values<>\"\"),(ROW(dms_060801_01_Values)))),\"not an ARR\"),0),\"0\")"]
[null,"Table 6.8 - MaxRows",{"$f":"IFERROR(IF(dms_Model=\"ARR\",(MAX(0,dms_0608_LastRow-dms_0608_OffsetRows)),\"not an ARR\"),\"0\")","v":"not an ARR"},"dms_060801_MaxRows","=IFERROR(IF(dms_Model=\"ARR\",(MAX(0,dms_0608_LastRow-dms_0608_OffsetRows)),\"not an ARR\"),\"0\")"]
[null,"TNSP RESET RINS"]
[null,"Table 7.9.4 only appears in TNSPs Reset RIN"]
[null,"Table 7.9.4 - first year",{"$f":"LEFT(PRCP_y3,4)","v":"2014"},"dms_070904_Start_Year","=LEFT(PRCP_y3,4)"]
[]
[null,"MISC"]
[null,"Distribution Determination Reference",{"$f":"INDEX(dms_DeterminationRef_List,MATCH(dms_TradingName,dms_TradingName_List))","v":"n/a"},"dms_DeterminationRef"]
[null,"Public lighting NSP?",{"$f":"INDEX(dms_Public_Lighting_List,MATCH(dms_TradingName,dms_TradingName_List))","v":"NO"},"dms_Public_Lighting","=INDEX(dms_Public_Lighting_List,MATCH(dms_TradingName,dms_TradingName_List))"]
[null,"CBD Feeder for this business",{"$f":"INDEX(dms_CBD_flag,MATCH(dms_TradingName,dms_TradingName_List))","v":"NO"},"dms_CBD_flag_NSP"]
[null,"Urban Feeder for this business",{"$f":"INDEX(dms_Urban_flag,MATCH(dms_TradingName,dms_TradingName_List))","v":"NO"},"dms_Urban_flag_NSP"]
[null,"Short rural Feeder for this business",{"$f":"INDEX(dms_ShortRural_flag,MATCH(dms_TradingName,dms_TradingName_List))","v":"NO"},"dms_ShortRural_flag_NSP"]
[null,"Long rural Feeder for this business",{"$f":"INDEX(dms_LongRural_flag,MATCH(dms_TradingName,dms_TradingName_List))","v":"NO"},"dms_LongRural_flag_NSP"]
[null,"Fifth Feeder Category (eg. TasNetworks (D))",{"$f":"INDEX(dms_FeederType_5_flag,MATCH(dms_TradingName,dms_TradingName_List))","v":"NO"},"dms_FifthFeeder_flag_NSP","=INDEX(dms_FeederType_5_flag,MATCH(dms_TradingName,dms_TradingName_List))"]
[]
[null,"DISCARD FILES"]
[null,"discard this record?","NO","dms_DISCARD","If record is to be discarded from DB set this flag to YES"]
[]
[null,"SUBSET FILES"]
[null,"Is this Submission File a Subset File","NO","dms_Partial"]
[]
[]
[null,"REGULATORY YEARS FOR MULTI RYE SUBMISSIONS"]
[null,"Multiple RYE flag","NO","dms_Multi_RYE_flag"]
[null,null,"Manually specify RYE","Named ranges to apply"]
[null,null,2013,"dms_RYE_01"]
[null,null,2014,"dms_RYE_02"]
[null,null,2015,"dms_RYE_03"]
[null,null,2016,"dms_RYE_04"]
[null,null,2017,"dms_RYE_05"]
[null,null,2018,"dms_RYE_06"]
[null,null,2019,"dms_RYE_07"]
[null,null,2020,"dms_RYE_08"]
[null,null,2021,"dms_RYE_09"]

{"sheet":"Business & other details","index":3,"n_rows":74,"n_cols":94,"rows_kept":74,"cut":false,"hidden":false,"merged":[[61,25,61,34],[61,37,61,52],[69,25,71,34],[69,37,71,81],[73,25,73,34],[73,37,73,52],[63,25,63,34],[63,37,63,52],[65,25,65,34],[65,37,65,52],[67,25,67,34],[67,37,67,52],[51,37,51,44],[51,46,51,53],[51,55,51,62],[51,64,51,71],[51,73,51,80],[53,25,53,34],[53,37,53,44],[55,25,55,34],[55,37,55,44],[49,25,49,34],[49,37,49,44],[49,46,49,53],[49,55,49,62],[49,64,49,71],[49,73,49,80],[50,37,50,44],[50,46,50,53],[50,55,50,62],[50,64,50,71],[50,73,50,80],[46,37,46,44],[46,46,46,53],[46,55,46,62],[46,64,46,71],[46,73,46,80],[47,37,47,44],[47,46,47,53],[47,55,47,62],[47,64,47,71],[47,73,47,80],[43,37,43,44],[43,46,43,53],[43,55,43,62],[43,64,43,71],[43,73,43,80],[45,25,45,34],[45,37,45,44],[45,46,45,53],[45,55,45,62],[45,64,45,71],[45,73,45,80],[41,25,41,34],[41,37,41,44],[41,46,41,53],[41,55,41,62],[41,64,41,71],[41,73,41,80],[42,37,42,44],[42,46,42,53],[42,55,42,62],[42,64,42,71],[42,73,42,80],[31,21,31,35],[31,37,31,58],[31,60,31,66],[31,68,31,89],[32,21,32,35],[32,37,32,58],[32,60,32,66],[32,68,32,89],[33,21,33,35],[33,37,33,58],[33,60,33,66],[33,68,33,89],[23,21,23,35],[23,37,23,58],[23,60,23,66],[23,68,23,89],[24,21,24,35],[24,37,24,51],[24,60,24,66],[24,68,24,82],[25,21,25,35],[25,37,25,40],[25,49,25,51],[25,60,25,66],[25,68,25,71],[25,80,25,82],[0,7,2,15],[3,21,3,57],[6,21,6,75],[8,16,8,93],[15,21,15,35],[15,37,15,58],[16,21,16,35],[16,37,16,48],[22,21,22,35],[22,37,22,58],[22,60,22,66],[22,68,22,89]]}
[null,null,null,null,null,null,null,null,null,null,null,null,null,null,null,null,null,null,null,null,null,{"$f":"INDEX(dms_Worksheet_List,MATCH(dms_Model,dms_Model_List))","v":"REGULATORY REPORTING STATEMENT"},null,null,null,null,null,null,null,null,null,null,null,null,null,null,null,null,null,null,null,null,null,null,null,null,null,null,null,null,null,null,null,null,null,null,null,null,null,null,null,null,null,null,null,null,null,null,null,null,null,null,null,null,null,null,null,null,null,null,null,null,null,null,null,null,null,null,null,null,null,null,null,"DECEMBER 2020"]
[null,null,null,null,null,null,null,null,null,null,null,null,null,null,null,null,null,null,null,null,null,{"$f":"INDEX(dms_TradingNameFull_List,MATCH(dms_TradingName,dms_TradingName_List))","v":"APT Petroleum Pipelines Limited t/a Roma to Brisbane Pipeline"}]
[]
[null,null,null,null,null,null,null,null,null,null,null,null,null,null,null,null,null,null,null,null,null,"BUSINESS & OTHER DETAILS"]
[]
[null,null,null,null,null,null,null,null,null,null,null,null,null,null,null,null,null,null,null,null,null,"INSTRUCTIONS"]
[null,null,null,null,null,null,null,null,null,null,null,null,null,null,null,null,null,null,null,null,null,"Complete the following business details regulatory template before entering data or values in any other regulatory template. This regulatory template is linked to other cells within the spreadsheet and automatically generates column headings and conditional formatting to distinguish business specific input and non-input cells. "]
[]
[null,null,null,null,null,null,null,null,null,null,null,null,null,null,null,null,"SUBMISSION PARTICULARS INPUT SHEET"]
[]
[]
[null,null,null,null,null,null,null,null,null,null,null,null,null,null,null,null,null,null,null,null,null,"ENTITY DETAILS"]
[]
[null,null,null,null,null,null,null,null,null,null,null,null,null,null,null,null,null,null,null,null,null,"Business Name"]
[]
[null,null,null,null,null,null,null,null,null,null,null,null,null,null,null,null,null,null,null,null,null,"Short name",null,null,null,null,null,null,null,null,null,null,null,null,null,null,null,"Roma to Brisbane Pipeline"]
[null,null,null,null,null,null,null,null,null,null,null,null,null,null,null,null,null,null,null,null,null,"ACN/ABN",null,null,null,null,null,null,null,null,null,null,null,null,null,null,null,{"$f":"INDEX(dms_ABN_List,MATCH(dms_TradingName,dms_TradingName_List))","v":"009 737 393"}]
[]
[]
[]
[null,null,null,null,null,null,null,null,null,null,null,null,null,null,null,null,null,null,null,null,null,"Business Address",null,null,null,null,null,null,null,null,null,null,null,null,null,null,null,null,null,null,null,null,null,null,null,null,null,null,null,null,null,null,null,null,null,null,null,null,null,null,null,null,null,null,null,null,null,null,"Postal Address"]
[]
[null,null,null,null,null,null,null,null,null,null,null,null,null,null,null,null,null,null,null,null,null,"Address 1",null,null,null,null,null,null,null,null,null,null,null,null,null,null,null,{"$f":"INDEX(dms_Addr1_List,MATCH(dms_TradingName,dms_TradingName_List))","v":"580 George Street"},null,null,null,null,null,null,null,null,null,null,null,null,null,null,null,null,null,null,null,null,null,null,"Address 1",null,null,null,null,null,null,null,{"$f":"INDEX(dms_PAddr1_List,MATCH(dms_TradingName,dms_TradingName_List))","v":"PO Box R41"}]
[null,null,null,null,null,null,null,null,null,null,null,null,null,null,null,null,null,null,null,null,null,"Address 2",null,null,null,null,null,null,null,null,null,null,null,null,null,null,null,{"$f":"IF(ISBLANK(INDEX(dms_Addr2_List,MATCH(dms_TradingName,dms_TradingName_List))),\"\",(INDEX(dms_Addr2_List,MATCH(dms_TradingName,dms_TradingName_List))))","v":""},null,null,null,null,null,null,null,null,null,null,null,null,null,null,null,null,null,null,null,null,null,null,"Address 2",null,null,null,null,null,null,null,{"$f":"IF(ISBLANK(INDEX(dms_PAddr2_List,MATCH(dms_TradingName,dms_TradingName_List))),\"\",(INDEX(dms_PAddr2_List,MATCH(dms_TradingName,dms_TradingName_List))))","v":""}]
[null,null,null,null,null,null,null,null,null,null,null,null,null,null,null,null,null,null,null,null,null,"Suburb",null,null,null,null,null,null,null,null,null,null,null,null,null,null,null,{"$f":"INDEX(dms_Suburb_List,MATCH(dms_TradingName,dms_TradingName_List))","v":"SYDNEY"},null,null,null,null,null,null,null,null,null,null,null,null,null,null,null,null,null,null,null,null,null,null,"Suburb",null,null,null,null,null,null,null,{"$f":"INDEX(dms_PSuburb_List,MATCH(dms_TradingName,dms_TradingName_List))","v":"ROYAL EXCHANGE"}]
[null,null,null,null,null,null,null,null,null,null,null,null,null,null,null,null,null,null,null,null,null,"State",null,null,null,null,null,null,null,null,null,null,null,null,null,null,null,{"$f":"INDEX(dms_State_List,MATCH(dms_TradingName,dms_TradingName_List))","v":"NSW"},null,null,null,null,null,null,null,null,null,"Post code",null,null,null,null,null,null,null,null,null,null,null,null,"State",null,null,null,null,null,null,null,{"$f":"INDEX(dms_PState_List,MATCH(dms_TradingName,dms_TradingName_List))","v":"NSW"},null,null,null,null,null,null,null,null,null,"Post code"]
[]
[null,null,null,null,null,null,null,null,null,null,null,null,null,null,null,null,null,null,null,null,null,null,null,null,null,null,null,null,null,null,null,null,null,null,null,null,null,null,null,null,null,null,null,null,null,null,null,null,null,null,null,null,"`"]
[]
[null,null,null,null,null,null,null,null,null,null,null,null,null,null,null,null,null,null,null,null,null,"Contact Names"]
[]
[null,null,null,null,null,null,null,null,null,null,null,null,null,null,null,null,null,null,null,null,null,"Name",null,null,null,null,null,null,null,null,null,null,null,null,null,null,null,null,null,null,null,null,null,null,null,null,null,null,null,null,null,null,null,null,null,null,null,null,null,null,"Name"]
[null,null,null,null,null,null,null,null,null,null,null,null,null,null,null,null,null,null,null,null,null,"Phone",null,null,null,null,null,null,null,null,null,null,null,null,null,null,null,null,null,null,null,null,null,null,null,null,null,null,null,null,null,null,null,null,null,null,null,null,null,null,"Phone"]
[null,null,null,null,null,null,null,null,null,null,null,null,null,null,null,null,null,null,null,null,null,"Email",null,null,null,null,null,null,null,null,null,null,null,null,null,null,null,null,null,null,null,null,null,null,null,null,null,null,null,null,null,null,null,null,null,null,null,null,null,null,"Email"]
[]
[]
[]
[]
[null,null,null,null,null,null,null,null,null,null,null,null,null,null,null,null,"REGULATORY CONTROL PERIODS"]
[]
[]
[null,null,null,null,null,null,null,null,null,null,null,null,null,null,null,null,null,null,null,null,null,null,null,null,null,"Forthcoming period",null,null,null,null,null,null,null,null,null,null,null,"2022-23",null,null,null,null,null,null,null,null,{"$f":"FRCP_y2","v":"2023-24"},null,null,null,null,null,null,null,null,{"$f":"FRCP_y3","v":"2024-25"},null,null,null,null,null,null,null,null,{"$f":"FRCP_y4","v":"2025-26"},null,null,null,null,null,null,null,null,{"$f":"FRCP_y5","v":"2026-27"}]
[null,null,null,null,null,null,null,null,null,null,null,null,null,null,null,null,null,null,null,null,null,null,null,null,null,null,null,null,null,null,null,null,null,null,null,null,null,{"$f":"FRCP_y6","v":"2027-28"},null,null,null,null,null,null,null,null,{"$f":"FRCP_y7","v":"2028-29"},null,null,null,null,null,null,null,null,{"$f":"FRCP_y8","v":"2029-30"},null,null,null,null,null,null,null,null,{"$f":"FRCP_y9","v":"2030-31"},null,null,null,null,null,null,null,null,{"$f":"FRCP_y10","v":"2031-32"}]
[null,null,null,null,null,null,null,null,null,null,null,null,null,null,null,null,null,null,null,null,null,null,null,null,null,null,null,null,null,null,null,null,null,null,null,null,null,{"$f":"FRCP_y11","v":"2032-33"},null,null,null,null,null,null,null,null,{"$f":"FRCP_y12","v":"2033-34"},null,null,null,null,null,null,null,null,{"$f":"FRCP_y13","v":"2034-35"},null,null,null,null,null,null,null,null,{"$f":"FRCP_y14","v":"2035-36"},null,null,null,null,null,null,null,null,{"$f":"FRCP_y15","v":"2036-37"}]
[]
[null,null,null,null,null,null,null,null,null,null,null,null,null,null,null,null,null,null,null,null,null,null,null,"RESETS",null,"Current period",null,null,null,null,null,null,null,null,null,null,null,{"$f":"CRCP_y1","v":"2017-18"},null,null,null,null,null,null,null,null,{"$f":"CRCP_y2","v":"2018-19"},null,null,null,null,null,null,null,null,{"$f":"CRCP_y3","v":"2019-20"},null,null,null,null,null,null,null,null,{"$f":"CRCP_y4","v":"2020-21"},null,null,null,null,null,null,null,null,{"$f":"CRCP_y5","v":"2021-22"}]
[null,null,null,null,null,null,null,null,null,null,null,null,null,null,null,null,null,null,null,null,null,null,null,null,null,null,null,null,null,null,null,null,null,null,null,null,null,{"$f":"CRCP_y6","v":"2022-23"},null,null,null,null,null,null,null,null,{"$f":"CRCP_y7","v":"2023-24"},null,null,null,null,null,null,null,null,{"$f":"CRCP_y8","v":"2024-25"},null,null,null,null,null,null,null,null,{"$f":"CRCP_y9","v":"2025-26"},null,null,null,null,null,null,null,null,{"$f":"CRCP_y10","v":"2026-27"}]
[null,null,null,null,null,null,null,null,null,null,null,null,null,null,null,null,null,null,null,null,null,null,null,null,null,null,null,null,null,null,null,null,null,null,null,null,null,{"$f":"CRCP_y11","v":"2027-28"},null,null,null,null,null,null,null,null,{"$f":"CRCP_y12","v":"2028-29"},null,null,null,null,null,null,null,null,{"$f":"CRCP_y13","v":"2029-30"},null,null,null,null,null,null,null,null,{"$f":"CRCP_y14","v":"2030-31"},null,null,null,null,null,null,null,null,{"$f":"CRCP_y15","v":"2031-32"}]
[]
[null,null,null,null,null,null,null,null,null,null,null,null,null,null,null,null,null,null,null,null,null,null,null,null,null,"Previous period",null,null,null,null,null,null,null,null,null,null,null,{"$f":"PRCP_y1","v":"2012-13"},null,null,null,null,null,null,null,null,{"$f":"PRCP_y2","v":"2013-14"},null,null,null,null,null,null,null,null,{"$f":"PRCP_y3","v":"2014-15"},null,null,null,null,null,null,null,null,{"$f":"PRCP_y4","v":"2015-16"},null,null,null,null,null,null,null,null,{"$f":"PRCP_y5","v":"2016-17"}]
[null,null,null,null,null,null,null,null,null,null,null,null,null,null,null,null,null,null,null,null,null,null,null,null,null,null,null,null,null,null,null,null,null,null,null,null,null,{"$f":"PRCP_y6","v":"2017-18"},null,null,null,null,null,null,null,null,{"$f":"PRCP_y7","v":"2018-19"},null,null,null,null,null,null,null,null,{"$f":"PRCP_y8","v":"2019-20"},null,null,null,null,null,null,null,null,{"$f":"PRCP_y9","v":"2020-21"},null,null,null,null,null,null,null,null,{"$f":"PRCP_y10","v":"2021-22"}]
[null,null,null,null,null,null,null,null,null,null,null,null,null,null,null,null,null,null,null,null,null,null,null,null,null,null,null,null,null,null,null,null,null,null,null,null,null,{"$f":"PRCP_y11","v":"2022-23"},null,null,null,null,null,null,null,null,{"$f":"PRCP_y12","v":"2023-24"},null,null,null,null,null,null,null,null,{"$f":"PRCP_y13","v":"2024-25"},null,null,null,null,null,null,null,null,{"$f":"PRCP_y14","v":"2025-26"},null,null,null,null,null,null,null,null,{"$f":"PRCP_y15","v":"2026-27"}]
[]
[null,null,null,null,null,null,null,null,null,null,null,null,null,null,null,null,null,null,null,null,null,null,null,null,null,"Commencing year",null,null,null,null,null,null,null,null,null,null,null,"2021-22"]
[null,null,null,null,null,null,null,null,null,null,null,null,null,null,null,null,null,null,null,null,null,null,null,"ANNUAL RINS"]
[null,null,null,null,null,null,null,null,null,null,null,null,null,null,null,null,null,null,null,null,null,null,null,null,null,"Final year",null,null,null,null,null,null,null,null,null,null,null,"2025-26"]
[]
[]
[]
[null,null,null,null,null,null,null,null,null,null,null,null,null,null,null,null,"SUBMISSION DETAILS"]
[]
[null,null,null,null,null,null,null,null,null,null,null,null,null,null,null,null,null,null,null,null,null,null,null,null,null,"RIN type",null,null,null,null,null,null,null,null,null,null,null,{"$f":"INDIRECT(dms_Model)","v":"Regulatory Reporting (Reset)"}]
[]
[null,null,null,null,null,null,null,null,null,null,null,null,null,null,null,null,null,null,null,null,null,null,null,null,null,"Source",null,null,null,null,null,null,null,null,null,null,null,"Regulatory proposal"]
[]
[null,null,null,null,null,null,null,null,null,null,null,null,null,null,null,null,null,null,null,null,null,null,null,"THIS FILE",null,"Data Quality",null,null,null,null,null,null,null,null,null,null,null,"Consolidated"]
[]
[null,null,null,null,null,null,null,null,null,null,null,null,null,null,null,null,null,null,null,null,null,null,null,null,null,"Confidentiality Status",null,null,null,null,null,null,null,null,null,null,null,"Public"]
[]
[null,null,null,null,null,null,null,null,null,null,null,null,null,null,null,null,null,null,null,null,null,null,null,null,null,"Amended RIN \nAmendment Reason",null,null,null,null,null,null,null,null,null,null,null,"."]
[]
[]
[]
[null,null,null,null,null,null,null,null,null,null,null,null,null,null,null,null,null,null,null,null,null,null,null,null,null,"Submission Date",null,null,null,null,null,null,null,null,null,null,null,"22/07/21",null,null,null,null,null,null,null,null,null,null,null,null,null,null,null,null,null,"Please enter date this file submitted to AER"]

{"sheet":"Indicative bill impact","index":4,"n_rows":56,"n_cols":12,"rows_kept":56,"cut":false,"hidden":false,"merged":[[8,1,8,2],[24,1,24,2],[25,1,25,2],[26,1,26,2],[27,2,27,3],[23,1,23,2],[9,1,9,2],[12,2,12,3],[19,2,19,3],[10,1,10,2],[11,1,11,2]]}
[null,{"$f":"IF(dms_DataQuality=\"backcast\",INDEX(dms_Worksheet_List,MATCH(dms_Model,dms_Model_List))&\" BACKCAST\",INDEX(dms_Worksheet_List,MATCH(dms_Model,dms_Model_List)))","v":"REGULATORY REPORTING STATEMENT"}]
[null,{"$f":"INDEX(dms_TradingNameFull_List,MATCH(dms_TradingName,dms_TradingName_List))","v":"APT Petroleum Pipelines Limited t/a Roma to Brisbane Pipeline"}]
[]
[null,"INDICATIVE IMPACT OF THE REGULATORY PROPOSAL ON THE AVERAGE GAS BILL"]
[]
[null,"1 - TYPICAL GAS BILL"]
[]
[null,"A. ANNUAL USAGE PER CUSTOMER"]
[null,null,null,"MJ"]
[null,null,null,{"$f":"CRCP_y5","v":"2021-22"}]
[null,"Residential customer",null,7873]
[null,"Small business customer",null,100000]
[null,"Source(s) of data:","Residential: AER Annual Retail Markets Report 2019-20; ACIL Allen, Energy benchmarks report 2017\n\nSmall Business: Alviss Consulting & Energy Consumers Australia, Analysis of small business retail energy bills in Australia, Final Report, December 2020"]
[]
[]
[null,"B. TYPICAL ANNUAL GAS BILL"]
[null,null,"Tariff type",{"$f":"CONCATENATE(\"($ real, \", dms_DollarReal, \")\")","v":"($ real, June 2022)"}]
[null,"Residential customer",null,{"$f":"0.5*(615+680)*(1+0.0111492281303602)*(1+0.0242487465753967)","v":670.59524335979779}]
[null,"Small business customer",null,{"$f":"AVERAGE(3171,3565,3940,4428)*((1+0.0111492281303602)^(8/12))*(1+0.0242487465753967)","v":3896.2570092192595}]
[null,"Source(s) of data:","Residential: Median market off for low and average income households in 2020, average of AGN and Allgas Energy networks. AER Annual Retail Markets Report 2019-20 \n\nSmall Business: Average of AGL & Origin customers for Brisbane North and Brisbane South regsions. Alviss Consulting & Energy Consumers Australia, Analysis of small business retail energy bills in Australia Final Report, December 2020"]
[]
[]
[null,"C. TRANSMISSION COSTS AS A PROPORTION OF A TYPICAL CUSTOMER'S GAS BILL"]
[null,null,null,"Proportion (%)"]
[null,null,null,{"$f":"CRCP_y5","v":"2021-22"}]
[null,"Residential customer",null,3.3769628631573775E-2]
[null,"Small business customer",null,3.3769628631573775E-2]
[null,"Source(s) of data:","Oakley Greenwood, Gas Price Trends Review 2017"]
[]
[]
[null,"2 - INDICATIVE ANNUAL AVERAGE TRANSMISSION PRICE IMPACT"]
[null,null,null,{"$f":"CRCP_y5","v":"2021-22"},{"$f":"FRCP_y1","v":"2022-23"},{"$f":"FRCP_y2","v":"2023-24"},{"$f":"FRCP_y3","v":"2024-25"},{"$f":"FRCP_y4","v":"2025-26"},{"$f":"FRCP_y5","v":"2026-27"},"Annual Average"]
[null,"Forecast inflation (per cent)",null,null,1.9993872504847632E-2,{"$f":"+$E$33","v":1.9993872504847632E-2},{"$f":"+$E$33","v":1.9993872504847632E-2},1.9993872504847632E-2,1.9993872504847632E-2]
[]
[null,"Forecast X factors (per cent)",null,null,5.7263106900305935E-2,-8.4360251676226697E-2,-8.4360251676226697E-2,-8.4360251676226697E-2,-8.4360251676226697E-2]
[]
[null,"Annual price path (index, nominal)",null,1,{"$f":"D37*(1+E33)*(1-E35)","v":0.96158585434594557},{"$f":"E37*(1+F33)*(1-F35)","v":1.0635531994346383},{"$f":"F37*(1+G33)*(1-G35)","v":1.1763332446243622},{"$f":"G37*(1+H33)*(1-H35)","v":1.3010725774169605},{"$f":"H37*(1+I33)*(1-I35)","v":1.4390393703843425}]
[null,"Annual price path (per cent, nominal)",null,null,{"$f":"E37/D37-1","v":-3.8414145654054432E-2},{"$f":"F37/E37-1","v":0.10604081229756579},{"$f":"G37/F37-1","v":0.10604081229756557},{"$f":"H37/G37-1","v":0.10604081229756557},{"$f":"I37/H37-1","v":0.10604081229756579},{"$f":"(I37/D37)^(1/5)-1","v":7.551020405837594E-2}]
[]
[null,{"$f":"CONCATENATE(\"Annual price path (index, real \",dms_DollarReal,\")\")","v":"Annual price path (index, real June 2022)"},null,1,{"$f":"D40*(1-E35)","v":0.94273689309969411},{"$f":"E40*(1-F35)","v":1.0222664146660483},{"$f":"F40*(1-G35)","v":1.1085050666874301},{"$f":"G40*(1-H35)","v":1.2020188330975543},{"$f":"H40*(1-I35)","v":1.3034214443772283}]
[null,{"$f":"CONCATENATE(\"Annual price path (per cent, real \",dms_DollarReal,\")\")","v":"Annual price path (per cent, real June 2022)"},null,null,{"$f":"E40/D40-1","v":-5.7263106900305893E-2},{"$f":"F40/E40-1","v":8.4360251676226738E-2},{"$f":"G40/F40-1","v":8.4360251676226738E-2},{"$f":"H40/G40-1","v":8.4360251676226738E-2},{"$f":"I40/H40-1","v":8.4360251676226738E-2},{"$f":"(I40/D40)^(1/5)-1","v":5.4428103001437078E-2}]
[]
[null,"3 - Transmission BILL COMPONENT"]
[null,"Residential customer"]
[null,null,null,{"$f":"CRCP_y5","v":"2021-22"},{"$f":"FRCP_y1","v":"2022-23"},{"$f":"FRCP_y2","v":"2023-24"},{"$f":"FRCP_y3","v":"2024-25"},{"$f":"FRCP_y4","v":"2025-26"},{"$f":"FRCP_y5","v":"2026-27"},{"$f":"\"Total \n\"&E45&\" to \n\"&I45&\"\"","v":"Total \n2022-23 to \n2026-27"},"Annual Average","Average annual impact on total bill (%)"]
[null,"Transmission charges bill component ($, nominal)",null,{"$f":"D18*$D$26","v":22.64575233036021},{"$f":"D46*(1+E$38)","v":21.77583510189611},{"$f":"E46*(1+F$38)","v":24.08496234455902},{"$f":"F46*(1+G$38)","v":26.638951315732339},{"$f":"G46*(1+H$38)","v":29.463767352007899},{"$f":"H46*(1+I$38)","v":32.588129175361317},null,{"$f":"+AVERAGE(E46:I46)","v":26.910329057911337}]
[null,"Annual change ($, nominal)",null,null,{"$f":"+E46-D46","v":-0.86991722846410013},{"$f":"+F46-E46","v":2.3091272426629104},{"$f":"+G46-F46","v":2.5539889711733181},{"$f":"+H46-G46","v":2.8248160362755605},{"$f":"+I46-H46","v":3.1243618233534178},{"$f":"+SUM(E47:I47)","v":9.9423768450011067},{"$f":"+AVERAGE(E47:I47)","v":1.9884753690002213},{"$f":"K47/D18","v":2.9652392985038438E-3}]
[null,{"$f":"CONCATENATE(\"Transmission charges bill component ($, real \",dms_DollarReal,\")\")","v":"Transmission charges bill component ($, real June 2022)"},null,{"$f":"D18*$D$26","v":22.64575233036021},{"$f":"D48*(1+E$41)","v":21.348986193828942},{"$f":"E48*(1+F$41)","v":23.149992042172642},25.102931197152973,27.220620790755802,29.516959211447091,null,{"$f":"+AVERAGE(E48:I48)","v":25.267897887071491}]
[null,{"$f":"CONCATENATE(\"Annual change ($, real \",dms_DollarReal,\")\")","v":"Annual change ($, real June 2022)"},null,null,{"$f":"+E48-D48","v":-1.2967661365312679},{"$f":"+F48-E48","v":1.8010058483436993},{"$f":"+G48-F48","v":1.9529391549803314},{"$f":"+H48-G48","v":2.1176895936028295},{"$f":"+I48-H48","v":2.2963384206912885},{"$f":"+SUM(E49:I49)","v":6.8712068810868807},{"$f":"+AVERAGE(E49:I49)","v":1.3742413762173762},{"$f":"K49/D18","v":2.0492858990949444E-3}]
[]
[null,"Small Business customer"]
[null,null,null,{"$f":"CRCP_y5","v":"2021-22"},{"$f":"FRCP_y1","v":"2022-23"},{"$f":"FRCP_y2","v":"2023-24"},{"$f":"FRCP_y3","v":"2024-25"},{"$f":"FRCP_y4","v":"2025-26"},{"$f":"FRCP_y5","v":"2026-27"},{"$f":"\"Total \n\"&E52&\" to \n\"&I52&\"\"","v":"Total \n2022-23 to \n2026-27"},"Annual Average","Average annual impact on total bill (%)"]
[null,"Transmission charges bill component ($, nominal)",null,{"$f":"D19*$D$27","v":131.57515225450072},{"$f":"D53*(1+E$38)","v":126.52080519134195},{"$f":"E53*(1+F$38)","v":139.93717414637393},{"$f":"F53*(1+G$38)","v":154.77622576348131},{"$f":"G53*(1+H$38)","v":171.18882246779225},{"$f":"H53*(1+I$38)","v":189.34182425854073},null,{"$f":"+AVERAGE(E53:I53)","v":156.35297036550605}]
[null,"Annual change ($, nominal)",null,null,{"$f":"+E53-D53","v":-5.0543470631587724},{"$f":"+F53-E53","v":13.416368955031984},{"$f":"+G53-F53","v":14.839051617107373},{"$f":"+H53-G53","v":16.412596704310943},{"$f":"+I53-H53","v":18.153001790748476},{"$f":"+SUM(E54:I54)","v":57.766672004040004},{"$f":"+AVERAGE(E54:I54)","v":11.553334400808001},{"$f":"K54/D19","v":2.9652392985038438E-3}]
[null,{"$f":"CONCATENATE(\"Transmission charges bill component ($, real \",dms_DollarReal,\")\")","v":"Transmission charges bill component ($, real June 2022)"},null,{"$f":"D19*$D$27","v":131.57515225450072},{"$f":"D55*(1+E$41)","v":124.04075024552722},{"$f":"E55*(1+F$41)","v":134.50485915434788},145.8517229242841,{"$f":"G55*(1+H$41)","v":158.155810977588},171.49787499571508,null,{"$f":"+AVERAGE(E55:I55)","v":146.81020365949246}]
[null,{"$f":"CONCATENATE(\"Annual change ($, real \",dms_DollarReal,\")\")","v":"Annual change ($, real June 2022)"},null,null,{"$f":"+E55-D55","v":-7.5344020089735011},{"$f":"+F55-E55","v":10.464108908820663},{"$f":"+G55-F55","v":11.34686376993622},{"$f":"+H55-G55","v":12.3040880533039},{"$f":"+I55-H55","v":13.342064018127076},{"$f":"+SUM(E56:I56)","v":39.922722741214358},{"$f":"+AVERAGE(E56:I56)","v":7.9845445482428712},{"$f":"K56/D19","v":2.0492858990949448E-3}]